{"text_format":"1","workbook":"xlsx","n_sheets":8,"sheets":["Priorytety szkoleniowe","Liczba dni szkoleń","Ceny szkoleń","Planowanie szkoleń","Koszty szkoleń","Ceny szkoleń - wykonanie","Wykonanie szkoleń ad hoc","Wykonanie planu"],"not_rendered":{"charts":0,"images":0,"macros":1,"external_links":0,"defined_names":10,"comments":7,"pivot_tables":0},"unopened":[],"bounds":{"document_bytes":16777216,"sheet_cells":100000,"rows_first":2000,"rows_last":500,"rows_between":2000,"halvings":0,"cell_chars":16384,"cell_head_chars":4096},"cells_cut":0,"cells_raw":0,"read":"whole","date_system":"1900"}

{"sheet":"Priorytety szkoleniowe","index":0,"n_rows":17,"n_cols":15,"rows_kept":17,"cut":false,"hidden":false,"merged":[[10,3,10,5],[10,6,10,8],[10,9,10,11],[0,0,0,14],[9,0,9,14],[10,12,10,14],[1,12,1,14],[1,3,1,5],[1,6,1,8],[1,9,1,11]]}
["Szkolenia planowane"]
[null,null,null,"Jednostka organizacyjna",null,null,"Grupa tematyczna: Prawo",null,null,"Grupa tematyczna: Finanse",null,null,"Grupa tematyczna 3"]
["Lp.","Pracownik","Członek korpusu służby cywilnej tak/nie","Dział","Wydział","Departament","Prawo administracyjne","Prawo finansów publicznych","Prawo zamówień publicznych","Audyt","Controling","Ekonomia","Tematyka 1","Tamatyka 2","Tematyka 3"]
[1,"Jan Kowalski",true,null,null,null,3,null,null,1,3,null,2]
[2,"Maria Nowak",true,null,null,null,null,2,1,3,null,2,3,2]
[3,"Piotr Krasinski",true,null,null,null,3,null,2,3,null,null,2,null,2]
[4,null,false]
[5,null,false]
[]
["Szkolenia ad hoc"]
[null,null,null,"Jednostka organizacyjna",null,null,"Grupa tematyczna: Prawo",null,null,"Grupa tematyczna: Finanse",null,null,"Grupa tematyczna 3"]
["Lp.","Pracownik","Członek korpusu służby cywilnej tak/nie","Dział","Wydział","Departament","Prawo administracyjne","Prawo finansów publicznych","Prawo zamówień publicznych","Audyt","Controling","Ekonomia","Tematyka 1","Tamatyka 2","Tematyka 3"]
[1,"Jan Kowalski",{"$f":"IF(C4=TRUE,\"tak\",\"nie\")","v":"tak"},null,null,null,1,null,null,1]
[2,"Maria Nowak",{"$f":"IF(C5=TRUE,\"tak\",\"nie\")","v":"tak"},null,null,null,1]
[3,"Piotr Krasinski",{"$f":"IF(C6=TRUE,\"tak\",\"nie\")","v":"tak"}]
[4,null,{"$f":"IF(C7=TRUE,\"tak\",\"nie\")","v":"nie"}]
[5,null,{"$f":"IF(C8=TRUE,\"tak\",\"nie\")","v":"nie"}]

{"sheet":"Liczba dni szkoleń","index":1,"n_rows":17,"n_cols":14,"rows_kept":17,"cut":false,"hidden":false,"merged":[[10,2,10,4],[10,5,10,7],[10,8,10,10],[10,11,10,13],[0,0,0,13],[9,0,9,13],[1,8,1,10],[1,11,1,13],[1,2,1,4],[1,5,1,7]]}
["Szkolenia planowane"]
[null,null,"Jednostka organizacyjna",null,null,"Grupa tematyczna: Prawo",null,null,"Grupa tematyczna: Finanse",null,null,"Grupa tematyczna 3"]
["Lp.","Pracownik","Dział","Wydział","Departament","Prawo administracyjne","Prawo finansów publicznych","Prawo zamówień publicznych","Audyt","Controling","Ekonomia","Tematyka 1","Tematyka 2","Tematyka 3"]
[1,"Jan Kowalski",null,null,null,2,4,5,3,1,5,6,3,10]
[2,"Maria Nowak",null,null,null,2,4,5,3,1,5,6,3,10]
[3,"Piotr Krasinski",null,null,null,2,4,5,3,1,5,6,3,10]
[4]
[5]
[]
["Szkolenia ad hoc"]
[null,null,"Jednostka organizacyjna",null,null,"Grupa tematyczna: Prawo",null,null,"Grupa tematyczna: Finanse",null,null,"Grupa tematyczna 3"]
["Lp.","Pracownik","Dział","Wydział","Departament","Prawo administracyjne","Prawo finansów publicznych","Prawo zamówień publicznych","Audyt","Controling","Ekonomia","Tematyka 1","Tamatyka 2","Tematyka 3"]
[1,"Jan Kowalski",null,null,null,1,null,null,3]
[2,"Maria Nowak",null,null,null,1]
[3,"Piotr Krasinski"]
[4]
[5]

{"sheet":"Ceny szkoleń","index":2,"n_rows":17,"n_cols":14,"rows_kept":17,"cut":false,"hidden":false,"merged":[[16,2,16,4],[10,11,10,13],[15,2,15,4],[2,2,2,4],[7,2,7,4],[4,2,4,4],[1,11,1,13],[10,0,10,1],[10,2,11,4],[5,2,5,4],[6,2,6,4],[0,0,0,10],[9,0,9,10],[12,2,12,4],[13,2,13,4],[14,2,14,4],[10,5,10,7],[10,8,10,10],[3,2,3,4],[1,2,1,4],[1,5,1,7],[1,8,1,10]]}
["Szkolenia planowane"]
[null,null,null,null,null,"Grupa tematyczna: Prawo",null,null,"Grupa tematyczna: Finanse",null,null,"Grupa tematyczna 3"]
["Lp.","Podtyp szkolenia","Sposób wyliczenia ceny",null,null,"Prawo administracyjne","Prawo finansów publicznych","Prawo zamówień publicznych","Audyt","Controling","Ekonomia","Tematyka 1","Tamatyka 2","Tematyka 3"]
[1,"otwarte","cena za osobodzień",null,null,1000,1000,1000,200,500,200,1000,800,800]
[2,"zewnętrzne zamknięte","cena za osobodzień",null,null,500,500,500,80,300,80,600,500,500]
[3,"wewnętrzne zamknięte","cena za osobodzień",null,null,250,250,200,20,200,20,50,50,50]
[]
[null,"Udział pracowników w finansowaniu","%",null,null,0,0,0,0.3,0,0,0,0,0]
[]
["Szkolenia ad hoc"]
[null,null,null,null,null,"Grupa tematyczna: Prawo",null,null,"Grupa tematyczna: Finanse",null,null,"Grupa tematyczna 3"]
["Lp.","Pracownik",null,null,null,"Prawo administracyjne","Prawo finansów publicznych","Prawo zamówień publicznych","Audyt","Controling","Ekonomia","Tematyka 1","Tamatyka 2","Tematyka 3"]
[1,"Jan Kowalski","cena za osobodzień",null,null,200,null,null,500]
[2,"Maria Nowak","cena za osobodzień",null,null,250]
[3,"Piotr Krasinski","cena za osobodzień"]
[4,null,"cena za osobodzień"]
[5,null,"cena za osobodzień"]

{"sheet":"Planowanie szkoleń","index":3,"n_rows":28,"n_cols":22,"rows_kept":28,"cut":false,"hidden":false,"merged":[[0,9,0,11],[0,12,0,14],[1,17,1,19],[20,0,20,5],[19,17,19,19],[2,0,2,15],[9,0,9,15],[8,0,8,5],[0,3,0,5],[0,6,0,8],[17,0,17,5],[2,17,2,19],[21,0,21,5],[22,4,22,5],[23,4,23,5],[22,0,23,3],[26,0,27,3],[26,4,26,5],[27,4,27,5],[24,4,24,5],[25,4,25,5],[24,0,25,3]]}
[null,null,null,"Jednostka organizacyjna",null,null,"Grupa tematyczna: Prawo",null,null,"Grupa tematyczna: Finanse",null,null,"Grupa tematyczna 3"]
["Lp.","Pracownik","Członek korpusu służby cywilnej tak/nie","Dział","Wydział","Departament","Prawo administracyjne","Prawo finansów publicznych","Prawo zamówień publicznych","Audyt","Controling","Ekonomia","Tematyka 1","Tamatyka 2","Tematyka 3","Suma ",null,"Policz szkolenia z priorytetem",null,null,null,1]
["Liczba osób na szkoleniach",null,null,null,null,null,null,null,null,null,null,null,null,null,null,null,null,1,null,null,null,2]
[1,"Jan Kowalski",{"$f":"'Priorytety szkoleniowe'!C13","v":"tak"},null,null,null,{"$f":"IF('Priorytety szkoleniowe'!G4=0,0,IF($R$3<='Priorytety szkoleniowe'!G4,1,0))","v":1},{"$f":"IF('Priorytety szkoleniowe'!H4=0,0,IF($R$3<='Priorytety szkoleniowe'!H4,1,0))","v":0},{"$f":"IF('Priorytety szkoleniowe'!I4=0,0,IF($R$3<='Priorytety szkoleniowe'!I4,1,0))","v":0},{"$f":"IF('Priorytety szkoleniowe'!J4=0,0,IF($R$3<='Priorytety szkoleniowe'!J4,1,0))","v":1},{"$f":"IF('Priorytety szkoleniowe'!K4=0,0,IF($R$3<='Priorytety szkoleniowe'!K4,1,0))","v":1},{"$f":"IF('Priorytety szkoleniowe'!L4=0,0,IF($R$3<='Priorytety szkoleniowe'!L4,1,0))","v":0},{"$f":"IF('Priorytety szkoleniowe'!M4=0,0,IF($R$3<='Priorytety szkoleniowe'!M4,1,0))","v":1},{"$f":"IF('Priorytety szkoleniowe'!N4=0,0,IF($R$3<='Priorytety szkoleniowe'!N4,1,0))","v":0},{"$f":"IF('Priorytety szkoleniowe'!O4=0,0,IF($R$3<='Priorytety szkoleniowe'!O4,1,0))","v":0},{"$f":"SUM(G4:O4)","v":4},null,null,null,null,null,3]
[2,"Maria Nowak",{"$f":"'Priorytety szkoleniowe'!C14","v":"tak"},null,null,null,{"$f":"IF('Priorytety szkoleniowe'!G5=0,0,IF($R$3<='Priorytety szkoleniowe'!G5,1,0))","v":0},{"$f":"IF('Priorytety szkoleniowe'!H5=0,0,IF($R$3<='Priorytety szkoleniowe'!H5,1,0))","v":1},{"$f":"IF('Priorytety szkoleniowe'!I5=0,0,IF($R$3<='Priorytety szkoleniowe'!I5,1,0))","v":1},{"$f":"IF('Priorytety szkoleniowe'!J5=0,0,IF($R$3<='Priorytety szkoleniowe'!J5,1,0))","v":1},{"$f":"IF('Priorytety szkoleniowe'!K5=0,0,IF($R$3<='Priorytety szkoleniowe'!K5,1,0))","v":0},{"$f":"IF('Priorytety szkoleniowe'!L5=0,0,IF($R$3<='Priorytety szkoleniowe'!L5,1,0))","v":1},{"$f":"IF('Priorytety szkoleniowe'!M5=0,0,IF($R$3<='Priorytety szkoleniowe'!M5,1,0))","v":1},{"$f":"IF('Priorytety szkoleniowe'!N5=0,0,IF($R$3<='Priorytety szkoleniowe'!N5,1,0))","v":1},{"$f":"IF('Priorytety szkoleniowe'!O5=0,0,IF($R$3<='Priorytety szkoleniowe'!O5,1,0))","v":0},{"$f":"SUM(G5:O5)","v":6}]
[3,"Piotr Krasinski",{"$f":"'Priorytety szkoleniowe'!C15","v":"tak"},null,null,null,{"$f":"IF('Priorytety szkoleniowe'!G6=0,0,IF($R$3<='Priorytety szkoleniowe'!G6,1,0))","v":1},{"$f":"IF('Priorytety szkoleniowe'!H6=0,0,IF($R$3<='Priorytety szkoleniowe'!H6,1,0))","v":0},{"$f":"IF('Priorytety szkoleniowe'!I6=0,0,IF($R$3<='Priorytety szkoleniowe'!I6,1,0))","v":1},{"$f":"IF('Priorytety szkoleniowe'!J6=0,0,IF($R$3<='Priorytety szkoleniowe'!J6,1,0))","v":1},{"$f":"IF('Priorytety szkoleniowe'!K6=0,0,IF($R$3<='Priorytety szkoleniowe'!K6,1,0))","v":0},{"$f":"IF('Priorytety szkoleniowe'!L6=0,0,IF($R$3<='Priorytety szkoleniowe'!L6,1,0))","v":0},{"$f":"IF('Priorytety szkoleniowe'!M6=0,0,IF($R$3<='Priorytety szkoleniowe'!M6,1,0))","v":1},{"$f":"IF('Priorytety szkoleniowe'!N6=0,0,IF($R$3<='Priorytety szkoleniowe'!N6,1,0))","v":0},{"$f":"IF('Priorytety szkoleniowe'!O6=0,0,IF($R$3<='Priorytety szkoleniowe'!O6,1,0))","v":1},{"$f":"SUM(G6:O6)","v":5}]
[4,null,{"$f":"'Priorytety szkoleniowe'!C16","v":"nie"},null,null,null,{"$f":"IF('Priorytety szkoleniowe'!G7=0,0,IF($R$3<='Priorytety szkoleniowe'!G7,1,0))","v":0},{"$f":"IF('Priorytety szkoleniowe'!H7=0,0,IF($R$3<='Priorytety szkoleniowe'!H7,1,0))","v":0},{"$f":"IF('Priorytety szkoleniowe'!I7=0,0,IF($R$3<='Priorytety szkoleniowe'!I7,1,0))","v":0},{"$f":"IF('Priorytety szkoleniowe'!J7=0,0,IF($R$3<='Priorytety szkoleniowe'!J7,1,0))","v":0},{"$f":"IF('Priorytety szkoleniowe'!K7=0,0,IF($R$3<='Priorytety szkoleniowe'!K7,1,0))","v":0},{"$f":"IF('Priorytety szkoleniowe'!L7=0,0,IF($R$3<='Priorytety szkoleniowe'!L7,1,0))","v":0},{"$f":"IF('Priorytety szkoleniowe'!M7=0,0,IF($R$3<='Priorytety szkoleniowe'!M7,1,0))","v":0},{"$f":"IF('Priorytety szkoleniowe'!N7=0,0,IF($R$3<='Priorytety szkoleniowe'!N7,1,0))","v":0},{"$f":"IF('Priorytety szkoleniowe'!O7=0,0,IF($R$3<='Priorytety szkoleniowe'!O7,1,0))","v":0},{"$f":"SUM(G7:O7)","v":0}]
[5,null,{"$f":"'Priorytety szkoleniowe'!C17","v":"nie"},null,null,null,{"$f":"IF('Priorytety szkoleniowe'!G8=0,0,IF($R$3<='Priorytety szkoleniowe'!G8,1,0))","v":0},{"$f":"IF('Priorytety szkoleniowe'!H8=0,0,IF($R$3<='Priorytety szkoleniowe'!H8,1,0))","v":0},{"$f":"IF('Priorytety szkoleniowe'!I8=0,0,IF($R$3<='Priorytety szkoleniowe'!I8,1,0))","v":0},{"$f":"IF('Priorytety szkoleniowe'!J8=0,0,IF($R$3<='Priorytety szkoleniowe'!J8,1,0))","v":0},{"$f":"IF('Priorytety szkoleniowe'!K8=0,0,IF($R$3<='Priorytety szkoleniowe'!K8,1,0))","v":0},{"$f":"IF('Priorytety szkoleniowe'!L8=0,0,IF($R$3<='Priorytety szkoleniowe'!L8,1,0))","v":0},{"$f":"IF('Priorytety szkoleniowe'!M8=0,0,IF($R$3<='Priorytety szkoleniowe'!M8,1,0))","v":0},{"$f":"IF('Priorytety szkoleniowe'!N8=0,0,IF($R$3<='Priorytety szkoleniowe'!N8,1,0))","v":0},{"$f":"IF('Priorytety szkoleniowe'!O8=0,0,IF($R$3<='Priorytety szkoleniowe'!O8,1,0))","v":0},{"$f":"SUM(G8:O8)","v":0}]
["Suma osób",null,null,null,null,null,{"$f":"SUM(G4:G8)","v":2},1,2,3,1,1,3,1,1]
["Liczba osobodni szkoleniowych"]
[1,"Jan Kowalski",null,null,null,null,{"$f":"G4*'Liczba dni szkoleń'!F4","v":2},{"$f":"H4*'Liczba dni szkoleń'!G4","v":0},{"$f":"I4*'Liczba dni szkoleń'!H4","v":0},{"$f":"J4*'Liczba dni szkoleń'!I4","v":3},{"$f":"K4*'Liczba dni szkoleń'!J4","v":1},{"$f":"L4*'Liczba dni szkoleń'!K4","v":0},{"$f":"M4*'Liczba dni szkoleń'!L4","v":6},{"$f":"N4*'Liczba dni szkoleń'!M4","v":0},{"$f":"O4*'Liczba dni szkoleń'!N4","v":0},{"$f":"SUM(G11:O11)","v":12}]
[2,"Maria Nowak",null,null,null,null,{"$f":"G5*'Liczba dni szkoleń'!F5","v":0},{"$f":"H5*'Liczba dni szkoleń'!G5","v":4},{"$f":"I5*'Liczba dni szkoleń'!H5","v":5},{"$f":"J5*'Liczba dni szkoleń'!I5","v":3},{"$f":"K5*'Liczba dni szkoleń'!J5","v":0},{"$f":"L5*'Liczba dni szkoleń'!K5","v":5},{"$f":"M5*'Liczba dni szkoleń'!L5","v":6},{"$f":"N5*'Liczba dni szkoleń'!M5","v":3},{"$f":"O5*'Liczba dni szkoleń'!N5","v":0},26]
[3,"Piotr Krasinski",null,null,null,null,{"$f":"G6*'Liczba dni szkoleń'!F6","v":2},{"$f":"H6*'Liczba dni szkoleń'!G6","v":0},{"$f":"I6*'Liczba dni szkoleń'!H6","v":5},{"$f":"J6*'Liczba dni szkoleń'!I6","v":3},{"$f":"K6*'Liczba dni szkoleń'!J6","v":0},{"$f":"L6*'Liczba dni szkoleń'!K6","v":0},{"$f":"M6*'Liczba dni szkoleń'!L6","v":6},{"$f":"N6*'Liczba dni szkoleń'!M6","v":0},{"$f":"O6*'Liczba dni szkoleń'!N6","v":10},26]
[4,null,null,null,null,null,{"$f":"G7*'Liczba dni szkoleń'!F7","v":0},{"$f":"H7*'Liczba dni szkoleń'!G7","v":0},{"$f":"I7*'Liczba dni szkoleń'!H7","v":0},{"$f":"J7*'Liczba dni szkoleń'!I7","v":0},{"$f":"K7*'Liczba dni szkoleń'!J7","v":0},{"$f":"L7*'Liczba dni szkoleń'!K7","v":0},{"$f":"M7*'Liczba dni szkoleń'!L7","v":0},{"$f":"N7*'Liczba dni szkoleń'!M7","v":0},{"$f":"O7*'Liczba dni szkoleń'!N7","v":0},0]
[5,null,null,null,null,null,{"$f":"G8*'Liczba dni szkoleń'!F8","v":0},{"$f":"H8*'Liczba dni szkoleń'!G8","v":0},{"$f":"I8*'Liczba dni szkoleń'!H8","v":0},{"$f":"J8*'Liczba dni szkoleń'!I8","v":0},{"$f":"K8*'Liczba dni szkoleń'!J8","v":0},{"$f":"L8*'Liczba dni szkoleń'!K8","v":0},{"$f":"M8*'Liczba dni szkoleń'!L8","v":0},{"$f":"N8*'Liczba dni szkoleń'!M8","v":0},{"$f":"O8*'Liczba dni szkoleń'!N8","v":0},0]
[null,null,null,null,null,null,{"$f":"G9*'Liczba dni szkoleń'!F9","v":0},{"$f":"H9*'Liczba dni szkoleń'!G9","v":0},{"$f":"I9*'Liczba dni szkoleń'!H9","v":0},{"$f":"J9*'Liczba dni szkoleń'!I9","v":0},{"$f":"K9*'Liczba dni szkoleń'!J9","v":0},{"$f":"L9*'Liczba dni szkoleń'!K9","v":0},{"$f":"M9*'Liczba dni szkoleń'!L9","v":0},{"$f":"N9*'Liczba dni szkoleń'!M9","v":0},{"$f":"O9*'Liczba dni szkoleń'!N9","v":0},0]
[null,null,null,null,null,null,{"$f":"G10*'Liczba dni szkoleń'!F10","v":0},{"$f":"H10*'Liczba dni szkoleń'!G10","v":0},{"$f":"I10*'Liczba dni szkoleń'!H10","v":0},{"$f":"J10*'Liczba dni szkoleń'!I10","v":0},{"$f":"K10*'Liczba dni szkoleń'!J10","v":0},{"$f":"L10*'Liczba dni szkoleń'!K10","v":0},{"$f":"M10*'Liczba dni szkoleń'!L10","v":0},{"$f":"N10*'Liczba dni szkoleń'!M10","v":0},{"$f":"O10*'Liczba dni szkoleń'!N10","v":0},0]
["Suma osobodni szkoleniowych",null,null,null,null,null,{"$f":"SUM(G11:G17)","v":4},4,10,9,1,5,18,3,10,64]
[]
[null,null,null,null,null,null,null,null,null,null,null,null,null,null,null,null,null,"Podtyp szkolenia"]
["Liczba szkoleń",null,null,null,null,null,1,1,1,1,1,1,1,1,1,null,null,"OZ","otwarte zewnętrzne"]
["Typ szkolenia",null,null,null,null,null,1,2,1,3,3,5,3,2,5,null,null,"OW","otwarte wewnętrzne"]
["Szkolenie 1",null,null,null,"Miesiąc realizacji szkolenia",null,3,1,2,3,7,9,12,12,1,null,null,"ZZ","zamknięte zewnętrzne"]
[null,null,null,null,"Liczba osób na szkoleniu",null,{"$f":"G9","v":2},1,2,3,1,1,3,1,1,null,null,"ZW","zamknięte wewnętrzne"]
["Szkolenie 2",null,null,null,"Miesiąc realizacji szkolenia",null,null,null,null,null,null,null,null,null,null,null,null,"brak"]
[null,null,null,null,"Liczba osób na szkoleniu"]
["Szkolenie 3",null,null,null,"Miesiąc realizacji szkolenia"]
[null,null,null,null,"Liczba osób na szkoleniu"]

{"sheet":"Koszty szkoleń","index":4,"n_rows":46,"n_cols":16,"rows_kept":46,"cut":false,"hidden":false,"merged":[[45,0,45,5],[0,0,0,1],[0,3,0,5],[0,6,0,8],[11,1,11,3],[12,1,12,3],[0,12,0,14],[39,0,39,15],[0,9,0,11],[36,1,36,3],[37,1,37,3],[2,0,2,15],[8,0,8,5],[22,0,22,15],[28,0,28,5],[10,1,10,3],[30,2,30,5],[31,2,31,5],[29,1,29,5],[14,0,14,15],[20,0,20,5]]}
["PLN",null,null,"Jednostka organizacyjna",null,null,"Grupa tematyczna: Prawo",null,null,"Grupa tematyczna: Finanse",null,null,"Grupa tematyczna 3"]
["Lp.","Pracownik","Członek korpusu służby cywilnej","Dział","Wydział","Departament","Prawo administracyjne","Prawo finansów publicznych","Prawo zamówień publicznych","Audyt","Controling","Ekonomia","Tematyka 1","Tamatyka 2","Tematyka 3","Suma "]
["Planowane koszty szkoleń"]
[1,"Jan Kowalski",{"$f":"'Priorytety szkoleniowe'!C13","v":"tak"},null,null,null,{"$f":"IF('Planowanie szkoleń'!G$22=4,0,LOOKUP('Planowanie szkoleń'!G$22,'Ceny szkoleń'!$A$4:$A$6,'Ceny szkoleń'!F$4:F$6))*'Planowanie szkoleń'!G11*(1-'Ceny szkoleń'!F$8)","v":2000},{"$f":"IF('Planowanie szkoleń'!H$22=4,0,LOOKUP('Planowanie szkoleń'!H$22,'Ceny szkoleń'!$A$4:$A$6,'Ceny szkoleń'!G$4:G$6))*'Planowanie szkoleń'!H11*(1-'Ceny szkoleń'!G$8)","v":0},{"$f":"IF('Planowanie szkoleń'!I$22=4,0,LOOKUP('Planowanie szkoleń'!I$22,'Ceny szkoleń'!$A$4:$A$6,'Ceny szkoleń'!H$4:H$6))*'Planowanie szkoleń'!I11*(1-'Ceny szkoleń'!H$8)","v":0},{"$f":"IF('Planowanie szkoleń'!J$22=4,0,LOOKUP('Planowanie szkoleń'!J$22,'Ceny szkoleń'!$A$4:$A$6,'Ceny szkoleń'!I$4:I$6))*'Planowanie szkoleń'!J11*(1-'Ceny szkoleń'!I$8)","v":42},{"$f":"IF('Planowanie szkoleń'!K$22=4,0,LOOKUP('Planowanie szkoleń'!K$22,'Ceny szkoleń'!$A$4:$A$6,'Ceny szkoleń'!J$4:J$6))*'Planowanie szkoleń'!K11*(1-'Ceny szkoleń'!J$8)","v":200},{"$f":"IF('Planowanie szkoleń'!L$22=4,0,LOOKUP('Planowanie szkoleń'!L$22,'Ceny szkoleń'!$A$4:$A$6,'Ceny szkoleń'!K$4:K$6))*'Planowanie szkoleń'!L11*(1-'Ceny szkoleń'!K$8)","v":0},{"$f":"IF('Planowanie szkoleń'!M$22=4,0,LOOKUP('Planowanie szkoleń'!M$22,'Ceny szkoleń'!$A$4:$A$6,'Ceny szkoleń'!L$4:L$6))*'Planowanie szkoleń'!M11*(1-'Ceny szkoleń'!L$8)","v":300},{"$f":"IF('Planowanie szkoleń'!N$22=4,0,LOOKUP('Planowanie szkoleń'!N$22,'Ceny szkoleń'!$A$4:$A$6,'Ceny szkoleń'!M$4:M$6))*'Planowanie szkoleń'!N11*(1-'Ceny szkoleń'!M$8)","v":0},{"$f":"IF('Planowanie szkoleń'!O$22=4,0,LOOKUP('Planowanie szkoleń'!O$22,'Ceny szkoleń'!$A$4:$A$6,'Ceny szkoleń'!N$4:N$6))*'Planowanie szkoleń'!O11*(1-'Ceny szkoleń'!N$8)","v":0},{"$f":"SUM(G4:O4)","v":2542}]
[2,"Maria Nowak",{"$f":"'Priorytety szkoleniowe'!C14","v":"tak"},null,null,null,{"$f":"IF('Planowanie szkoleń'!G$22=4,0,LOOKUP('Planowanie szkoleń'!G$22,'Ceny szkoleń'!$A$4:$A$6,'Ceny szkoleń'!F$4:F$6))*'Planowanie szkoleń'!G12*(1-'Ceny szkoleń'!F$8)","v":0},{"$f":"IF('Planowanie szkoleń'!H$22=4,0,LOOKUP('Planowanie szkoleń'!H$22,'Ceny szkoleń'!$A$4:$A$6,'Ceny szkoleń'!G$4:G$6))*'Planowanie szkoleń'!H12*(1-'Ceny szkoleń'!G$8)","v":2000},{"$f":"IF('Planowanie szkoleń'!I$22=4,0,LOOKUP('Planowanie szkoleń'!I$22,'Ceny szkoleń'!$A$4:$A$6,'Ceny szkoleń'!H$4:H$6))*'Planowanie szkoleń'!I12*(1-'Ceny szkoleń'!H$8)","v":5000},{"$f":"IF('Planowanie szkoleń'!J$22=4,0,LOOKUP('Planowanie szkoleń'!J$22,'Ceny szkoleń'!$A$4:$A$6,'Ceny szkoleń'!I$4:I$6))*'Planowanie szkoleń'!J12*(1-'Ceny szkoleń'!I$8)","v":42},{"$f":"IF('Planowanie szkoleń'!K$22=4,0,LOOKUP('Planowanie szkoleń'!K$22,'Ceny szkoleń'!$A$4:$A$6,'Ceny szkoleń'!J$4:J$6))*'Planowanie szkoleń'!K12*(1-'Ceny szkoleń'!J$8)","v":0},{"$f":"IF('Planowanie szkoleń'!L$22=4,0,LOOKUP('Planowanie szkoleń'!L$22,'Ceny szkoleń'!$A$4:$A$6,'Ceny szkoleń'!K$4:K$6))*'Planowanie szkoleń'!L12*(1-'Ceny szkoleń'!K$8)","v":100},{"$f":"IF('Planowanie szkoleń'!M$22=4,0,LOOKUP('Planowanie szkoleń'!M$22,'Ceny szkoleń'!$A$4:$A$6,'Ceny szkoleń'!L$4:L$6))*'Planowanie szkoleń'!M12*(1-'Ceny szkoleń'!L$8)","v":300},{"$f":"IF('Planowanie szkoleń'!N$22=4,0,LOOKUP('Planowanie szkoleń'!N$22,'Ceny szkoleń'!$A$4:$A$6,'Ceny szkoleń'!M$4:M$6))*'Planowanie szkoleń'!N12*(1-'Ceny szkoleń'!M$8)","v":1500},{"$f":"IF('Planowanie szkoleń'!O$22=4,0,LOOKUP('Planowanie szkoleń'!O$22,'Ceny szkoleń'!$A$4:$A$6,'Ceny szkoleń'!N$4:N$6))*'Planowanie szkoleń'!O12*(1-'Ceny szkoleń'!N$8)","v":0},{"$f":"SUM(G5:O5)","v":8942}]
[3,"Piotr Krasinski",{"$f":"'Priorytety szkoleniowe'!C15","v":"tak"},null,null,null,{"$f":"IF('Planowanie szkoleń'!G$22=4,0,LOOKUP('Planowanie szkoleń'!G$22,'Ceny szkoleń'!$A$4:$A$6,'Ceny szkoleń'!F$4:F$6))*'Planowanie szkoleń'!G13*(1-'Ceny szkoleń'!F$8)","v":2000},{"$f":"IF('Planowanie szkoleń'!H$22=4,0,LOOKUP('Planowanie szkoleń'!H$22,'Ceny szkoleń'!$A$4:$A$6,'Ceny szkoleń'!G$4:G$6))*'Planowanie szkoleń'!H13*(1-'Ceny szkoleń'!G$8)","v":0},{"$f":"IF('Planowanie szkoleń'!I$22=4,0,LOOKUP('Planowanie szkoleń'!I$22,'Ceny szkoleń'!$A$4:$A$6,'Ceny szkoleń'!H$4:H$6))*'Planowanie szkoleń'!I13*(1-'Ceny szkoleń'!H$8)","v":5000},{"$f":"IF('Planowanie szkoleń'!J$22=4,0,LOOKUP('Planowanie szkoleń'!J$22,'Ceny szkoleń'!$A$4:$A$6,'Ceny szkoleń'!I$4:I$6))*'Planowanie szkoleń'!J13*(1-'Ceny szkoleń'!I$8)","v":42},{"$f":"IF('Planowanie szkoleń'!K$22=4,0,LOOKUP('Planowanie szkoleń'!K$22,'Ceny szkoleń'!$A$4:$A$6,'Ceny szkoleń'!J$4:J$6))*'Planowanie szkoleń'!K13*(1-'Ceny szkoleń'!J$8)","v":0},{"$f":"IF('Planowanie szkoleń'!L$22=4,0,LOOKUP('Planowanie szkoleń'!L$22,'Ceny szkoleń'!$A$4:$A$6,'Ceny szkoleń'!K$4:K$6))*'Planowanie szkoleń'!L13*(1-'Ceny szkoleń'!K$8)","v":0},{"$f":"IF('Planowanie szkoleń'!M$22=4,0,LOOKUP('Planowanie szkoleń'!M$22,'Ceny szkoleń'!$A$4:$A$6,'Ceny szkoleń'!L$4:L$6))*'Planowanie szkoleń'!M13*(1-'Ceny szkoleń'!L$8)","v":300},{"$f":"IF('Planowanie szkoleń'!N$22=4,0,LOOKUP('Planowanie szkoleń'!N$22,'Ceny szkoleń'!$A$4:$A$6,'Ceny szkoleń'!M$4:M$6))*'Planowanie szkoleń'!N13*(1-'Ceny szkoleń'!M$8)","v":0},{"$f":"IF('Planowanie szkoleń'!O$22=4,0,LOOKUP('Planowanie szkoleń'!O$22,'Ceny szkoleń'!$A$4:$A$6,'Ceny szkoleń'!N$4:N$6))*'Planowanie szkoleń'!O13*(1-'Ceny szkoleń'!N$8)","v":500},{"$f":"SUM(G6:O6)","v":7842}]
[4,null,{"$f":"'Priorytety szkoleniowe'!C16","v":"nie"},null,null,null,{"$f":"IF('Planowanie szkoleń'!G$22=4,0,LOOKUP('Planowanie szkoleń'!G$22,'Ceny szkoleń'!$A$4:$A$6,'Ceny szkoleń'!F$4:F$6))*'Planowanie szkoleń'!G14*(1-'Ceny szkoleń'!F$8)","v":0},{"$f":"IF('Planowanie szkoleń'!H$22=4,0,LOOKUP('Planowanie szkoleń'!H$22,'Ceny szkoleń'!$A$4:$A$6,'Ceny szkoleń'!G$4:G$6))*'Planowanie szkoleń'!H14*(1-'Ceny szkoleń'!G$8)","v":0},{"$f":"IF('Planowanie szkoleń'!I$22=4,0,LOOKUP('Planowanie szkoleń'!I$22,'Ceny szkoleń'!$A$4:$A$6,'Ceny szkoleń'!H$4:H$6))*'Planowanie szkoleń'!I14*(1-'Ceny szkoleń'!H$8)","v":0},{"$f":"IF('Planowanie szkoleń'!J$22=4,0,LOOKUP('Planowanie szkoleń'!J$22,'Ceny szkoleń'!$A$4:$A$6,'Ceny szkoleń'!I$4:I$6))*'Planowanie szkoleń'!J14*(1-'Ceny szkoleń'!I$8)","v":0},{"$f":"IF('Planowanie szkoleń'!K$22=4,0,LOOKUP('Planowanie szkoleń'!K$22,'Ceny szkoleń'!$A$4:$A$6,'Ceny szkoleń'!J$4:J$6))*'Planowanie szkoleń'!K14*(1-'Ceny szkoleń'!J$8)","v":0},{"$f":"IF('Planowanie szkoleń'!L$22=4,0,LOOKUP('Planowanie szkoleń'!L$22,'Ceny szkoleń'!$A$4:$A$6,'Ceny szkoleń'!K$4:K$6))*'Planowanie szkoleń'!L14*(1-'Ceny szkoleń'!K$8)","v":0},{"$f":"IF('Planowanie szkoleń'!M$22=4,0,LOOKUP('Planowanie szkoleń'!M$22,'Ceny szkoleń'!$A$4:$A$6,'Ceny szkoleń'!L$4:L$6))*'Planowanie szkoleń'!M14*(1-'Ceny szkoleń'!L$8)","v":0},{"$f":"IF('Planowanie szkoleń'!N$22=4,0,LOOKUP('Planowanie szkoleń'!N$22,'Ceny szkoleń'!$A$4:$A$6,'Ceny szkoleń'!M$4:M$6))*'Planowanie szkoleń'!N14*(1-'Ceny szkoleń'!M$8)","v":0},{"$f":"IF('Planowanie szkoleń'!O$22=4,0,LOOKUP('Planowanie szkoleń'!O$22,'Ceny szkoleń'!$A$4:$A$6,'Ceny szkoleń'!N$4:N$6))*'Planowanie szkoleń'!O14*(1-'Ceny szkoleń'!N$8)","v":0},{"$f":"SUM(G7:O7)","v":0}]
[5,null,{"$f":"'Priorytety szkoleniowe'!C17","v":"nie"},null,null,null,{"$f":"IF('Planowanie szkoleń'!G$22=4,0,LOOKUP('Planowanie szkoleń'!G$22,'Ceny szkoleń'!$A$4:$A$6,'Ceny szkoleń'!F$4:F$6))*'Planowanie szkoleń'!G15*(1-'Ceny szkoleń'!F$8)","v":0},{"$f":"IF('Planowanie szkoleń'!H$22=4,0,LOOKUP('Planowanie szkoleń'!H$22,'Ceny szkoleń'!$A$4:$A$6,'Ceny szkoleń'!G$4:G$6))*'Planowanie szkoleń'!H15*(1-'Ceny szkoleń'!G$8)","v":0},{"$f":"IF('Planowanie szkoleń'!I$22=4,0,LOOKUP('Planowanie szkoleń'!I$22,'Ceny szkoleń'!$A$4:$A$6,'Ceny szkoleń'!H$4:H$6))*'Planowanie szkoleń'!I15*(1-'Ceny szkoleń'!H$8)","v":0},{"$f":"IF('Planowanie szkoleń'!J$22=4,0,LOOKUP('Planowanie szkoleń'!J$22,'Ceny szkoleń'!$A$4:$A$6,'Ceny szkoleń'!I$4:I$6))*'Planowanie szkoleń'!J15*(1-'Ceny szkoleń'!I$8)","v":0},{"$f":"IF('Planowanie szkoleń'!K$22=4,0,LOOKUP('Planowanie szkoleń'!K$22,'Ceny szkoleń'!$A$4:$A$6,'Ceny szkoleń'!J$4:J$6))*'Planowanie szkoleń'!K15*(1-'Ceny szkoleń'!J$8)","v":0},{"$f":"IF('Planowanie szkoleń'!L$22=4,0,LOOKUP('Planowanie szkoleń'!L$22,'Ceny szkoleń'!$A$4:$A$6,'Ceny szkoleń'!K$4:K$6))*'Planowanie szkoleń'!L15*(1-'Ceny szkoleń'!K$8)","v":0},{"$f":"IF('Planowanie szkoleń'!M$22=4,0,LOOKUP('Planowanie szkoleń'!M$22,'Ceny szkoleń'!$A$4:$A$6,'Ceny szkoleń'!L$4:L$6))*'Planowanie szkoleń'!M15*(1-'Ceny szkoleń'!L$8)","v":0},{"$f":"IF('Planowanie szkoleń'!N$22=4,0,LOOKUP('Planowanie szkoleń'!N$22,'Ceny szkoleń'!$A$4:$A$6,'Ceny szkoleń'!M$4:M$6))*'Planowanie szkoleń'!N15*(1-'Ceny szkoleń'!M$8)","v":0},{"$f":"IF('Planowanie szkoleń'!O$22=4,0,LOOKUP('Planowanie szkoleń'!O$22,'Ceny szkoleń'!$A$4:$A$6,'Ceny szkoleń'!N$4:N$6))*'Planowanie szkoleń'!O15*(1-'Ceny szkoleń'!N$8)","v":0},{"$f":"SUM(G8:O8)","v":0}]
["Suma kosztów szkoleń",null,null,null,null,null,{"$f":"SUM(G4:G8)","v":4000},2000,10000,126,200,100,900,1500,500,19326]
[]
[null,"Dostępny budżet szkoleniowy",null,null,50000,"PLN"]
[null,"Rezerwa budżetowa",null,null,{"$f":"E11-P9","v":30674},"PLN"]
[null,"% rezerwy",null,null,{"$f":"IF(E12<0,0,E12/E11)","v":0.61348000000000003},{"$f":"IF(E13<50%,\"\",\"POPRAW!\")","v":"POPRAW!"}]
[]
["Planowane koszty szkoleń ad hoc"]
[1,"Jan Kowalski",{"$f":"C4","v":"tak"},null,null,null,{"$f":"IF('Priorytety szkoleniowe'!G13=0,0,1*'Liczba dni szkoleń'!F13*'Ceny szkoleń'!F13)*(1-'Ceny szkoleń'!F$8)","v":200},{"$f":"IF('Priorytety szkoleniowe'!H13=0,0,1*'Liczba dni szkoleń'!G13*'Ceny szkoleń'!G13)*(1-'Ceny szkoleń'!G$8)","v":0},{"$f":"IF('Priorytety szkoleniowe'!I13=0,0,1*'Liczba dni szkoleń'!H13*'Ceny szkoleń'!H13)*(1-'Ceny szkoleń'!H$8)","v":0},{"$f":"IF('Priorytety szkoleniowe'!J13=0,0,1*'Liczba dni szkoleń'!I13*'Ceny szkoleń'!I13)*(1-'Ceny szkoleń'!I$8)","v":1050},{"$f":"IF('Priorytety szkoleniowe'!K13=0,0,1*'Liczba dni szkoleń'!J13*'Ceny szkoleń'!J13)*(1-'Ceny szkoleń'!J$8)","v":0},{"$f":"IF('Priorytety szkoleniowe'!L13=0,0,1*'Liczba dni szkoleń'!K13*'Ceny szkoleń'!K13)*(1-'Ceny szkoleń'!K$8)","v":0},{"$f":"IF('Priorytety szkoleniowe'!M13=0,0,1*'Liczba dni szkoleń'!L13*'Ceny szkoleń'!L13)*(1-'Ceny szkoleń'!L$8)","v":0},{"$f":"IF('Priorytety szkoleniowe'!N13=0,0,1*'Liczba dni szkoleń'!M13*'Ceny szkoleń'!M13)*(1-'Ceny szkoleń'!M$8)","v":0},{"$f":"IF('Priorytety szkoleniowe'!O13=0,0,1*'Liczba dni szkoleń'!N13*'Ceny szkoleń'!N13)*(1-'Ceny szkoleń'!N$8)","v":0},{"$f":"SUM(G16:O16)","v":1250}]
[2,"Maria Nowak",{"$f":"C5","v":"tak"},null,null,null,{"$f":"IF('Priorytety szkoleniowe'!G14=0,0,1*'Liczba dni szkoleń'!F14*'Ceny szkoleń'!F14)*(1-'Ceny szkoleń'!F$8)","v":250},{"$f":"IF('Priorytety szkoleniowe'!H14=0,0,1*'Liczba dni szkoleń'!G14*'Ceny szkoleń'!G14)*(1-'Ceny szkoleń'!G$8)","v":0},{"$f":"IF('Priorytety szkoleniowe'!I14=0,0,1*'Liczba dni szkoleń'!H14*'Ceny szkoleń'!H14)*(1-'Ceny szkoleń'!H$8)","v":0},{"$f":"IF('Priorytety szkoleniowe'!J14=0,0,1*'Liczba dni szkoleń'!I14*'Ceny szkoleń'!I14)*(1-'Ceny szkoleń'!I$8)","v":0},{"$f":"IF('Priorytety szkoleniowe'!K14=0,0,1*'Liczba dni szkoleń'!J14*'Ceny szkoleń'!J14)*(1-'Ceny szkoleń'!J$8)","v":0},{"$f":"IF('Priorytety szkoleniowe'!L14=0,0,1*'Liczba dni szkoleń'!K14*'Ceny szkoleń'!K14)*(1-'Ceny szkoleń'!K$8)","v":0},{"$f":"IF('Priorytety szkoleniowe'!M14=0,0,1*'Liczba dni szkoleń'!L14*'Ceny szkoleń'!L14)*(1-'Ceny szkoleń'!L$8)","v":0},{"$f":"IF('Priorytety szkoleniowe'!N14=0,0,1*'Liczba dni szkoleń'!M14*'Ceny szkoleń'!M14)*(1-'Ceny szkoleń'!M$8)","v":0},{"$f":"IF('Priorytety szkoleniowe'!O14=0,0,1*'Liczba dni szkoleń'!N14*'Ceny szkoleń'!N14)*(1-'Ceny szkoleń'!N$8)","v":0},{"$f":"SUM(G17:O17)","v":250}]
[3,"Piotr Krasinski",{"$f":"C6","v":"tak"},null,null,null,{"$f":"IF('Priorytety szkoleniowe'!G15=0,0,1*'Liczba dni szkoleń'!F15*'Ceny szkoleń'!F15)*(1-'Ceny szkoleń'!F$8)","v":0},{"$f":"IF('Priorytety szkoleniowe'!H15=0,0,1*'Liczba dni szkoleń'!G15*'Ceny szkoleń'!G15)*(1-'Ceny szkoleń'!G$8)","v":0},{"$f":"IF('Priorytety szkoleniowe'!I15=0,0,1*'Liczba dni szkoleń'!H15*'Ceny szkoleń'!H15)*(1-'Ceny szkoleń'!H$8)","v":0},{"$f":"IF('Priorytety szkoleniowe'!J15=0,0,1*'Liczba dni szkoleń'!I15*'Ceny szkoleń'!I15)*(1-'Ceny szkoleń'!I$8)","v":0},{"$f":"IF('Priorytety szkoleniowe'!K15=0,0,1*'Liczba dni szkoleń'!J15*'Ceny szkoleń'!J15)*(1-'Ceny szkoleń'!J$8)","v":0},{"$f":"IF('Priorytety szkoleniowe'!L15=0,0,1*'Liczba dni szkoleń'!K15*'Ceny szkoleń'!K15)*(1-'Ceny szkoleń'!K$8)","v":0},{"$f":"IF('Priorytety szkoleniowe'!M15=0,0,1*'Liczba dni szkoleń'!L15*'Ceny szkoleń'!L15)*(1-'Ceny szkoleń'!L$8)","v":0},{"$f":"IF('Priorytety szkoleniowe'!N15=0,0,1*'Liczba dni szkoleń'!M15*'Ceny szkoleń'!M15)*(1-'Ceny szkoleń'!M$8)","v":0},{"$f":"IF('Priorytety szkoleniowe'!O15=0,0,1*'Liczba dni szkoleń'!N15*'Ceny szkoleń'!N15)*(1-'Ceny szkoleń'!N$8)","v":0},{"$f":"SUM(G18:O18)","v":0}]
[4,null,{"$f":"C7","v":"nie"},null,null,null,{"$f":"IF('Priorytety szkoleniowe'!G16=0,0,1*'Liczba dni szkoleń'!F16*'Ceny szkoleń'!F16)*(1-'Ceny szkoleń'!F$8)","v":0},{"$f":"IF('Priorytety szkoleniowe'!H16=0,0,1*'Liczba dni szkoleń'!G16*'Ceny szkoleń'!G16)*(1-'Ceny szkoleń'!G$8)","v":0},{"$f":"IF('Priorytety szkoleniowe'!I16=0,0,1*'Liczba dni szkoleń'!H16*'Ceny szkoleń'!H16)*(1-'Ceny szkoleń'!H$8)","v":0},{"$f":"IF('Priorytety szkoleniowe'!J16=0,0,1*'Liczba dni szkoleń'!I16*'Ceny szkoleń'!I16)*(1-'Ceny szkoleń'!I$8)","v":0},{"$f":"IF('Priorytety szkoleniowe'!K16=0,0,1*'Liczba dni szkoleń'!J16*'Ceny szkoleń'!J16)*(1-'Ceny szkoleń'!J$8)","v":0},{"$f":"IF('Priorytety szkoleniowe'!L16=0,0,1*'Liczba dni szkoleń'!K16*'Ceny szkoleń'!K16)*(1-'Ceny szkoleń'!K$8)","v":0},{"$f":"IF('Priorytety szkoleniowe'!M16=0,0,1*'Liczba dni szkoleń'!L16*'Ceny szkoleń'!L16)*(1-'Ceny szkoleń'!L$8)","v":0},{"$f":"IF('Priorytety szkoleniowe'!N16=0,0,1*'Liczba dni szkoleń'!M16*'Ceny szkoleń'!M16)*(1-'Ceny szkoleń'!M$8)","v":0},{"$f":"IF('Priorytety szkoleniowe'!O16=0,0,1*'Liczba dni szkoleń'!N16*'Ceny szkoleń'!N16)*(1-'Ceny szkoleń'!N$8)","v":0},{"$f":"SUM(G19:O19)","v":0}]
[5,null,{"$f":"C8","v":"nie"},null,null,null,null,null,null,null,null,null,null,null,null,{"$f":"SUM(G20:O20)","v":0}]
["Suma kosztów szkoleń",null,null,null,null,null,{"$f":"SUM(G16:G20)","v":450},0,0,1050,0,0,0,0,0,1500]
[]
["Koszty szkoleń razem"]
[1,"Jan Kowalski",{"$f":"C4","v":"tak"},null,null,null,{"$f":"G4+G16","v":2200},{"$f":"H4+H16","v":0},0,1092,200,0,300,0,0,{"$f":"SUM(G24:O24)","v":3792}]
[2,"Maria Nowak",{"$f":"C5","v":"tak"},null,null,null,{"$f":"G5+G17","v":250},2000,5000,42,0,100,300,1500,0,{"$f":"SUM(G25:O25)","v":9192}]
[3,"Piotr Krasinski",{"$f":"C6","v":"tak"},null,null,null,2000,0,5000,42,0,0,300,0,500,{"$f":"SUM(G26:O26)","v":7842}]
[4,null,{"$f":"C7","v":"nie"},null,null,null,0,0,0,0,0,0,0,0,0,{"$f":"SUM(G27:O27)","v":0}]
[5,null,{"$f":"C8","v":"nie"},null,null,null,0,0,0,0,0,0,0,0,0,{"$f":"SUM(G28:O28)","v":0}]
["Suma kosztów szkoleń",null,null,null,null,null,{"$f":"SUM(G24:G28)","v":4450},2000,10000,1176,200,100,900,1500,500,20826]
[null,"w tym:"]
[null,null,"członkowie korpusu służby cywilnej",null,null,null,{"$f":"SUMIF($C$24:$C$28,\"tak\",G24:G28)","v":4450},{"$f":"SUMIF($C$24:$C$28,\"tak\",H24:H28)","v":2000},10000,1176,200,100,900,1500,500,20826]
[null,null,"pozostali pracownicy",null,null,null,{"$f":"G29-G31","v":0},{"$f":"H29-H31","v":0},0,0,0,0,0,0,0,0]
[]
[]
[]
[]
[null,"Rezerwa pozostała do wykorzystania",null,null,{"$f":"E11-P29","v":29174},"PLN"]
[null,"% rezerwy pozostałej do wykorzystania",null,null,{"$f":"E37/E11","v":0.58348}]
[]
["Koszt dla partycypujących pracowników"]
[1,"Jan Kowalski",null,null,null,null,{"$f":"IF('Planowanie szkoleń'!G$22=0,0,LOOKUP('Planowanie szkoleń'!G$22,'Ceny szkoleń'!$A$4:$A$6,'Ceny szkoleń'!F$4:F$6))*'Planowanie szkoleń'!G11*('Ceny szkoleń'!F$8)+IF('Priorytety szkoleniowe'!G13=0,0,1*'Liczba dni szkoleń'!F13*'Ceny szkoleń'!F13)*'Ceny szkoleń'!F$8","v":0},{"$f":"IF('Planowanie szkoleń'!H$22=0,0,LOOKUP('Planowanie szkoleń'!H$22,'Ceny szkoleń'!$A$4:$A$6,'Ceny szkoleń'!G$4:G$6))*'Planowanie szkoleń'!H11*('Ceny szkoleń'!G$8)+IF('Priorytety szkoleniowe'!H13=0,0,1*'Liczba dni szkoleń'!G13*'Ceny szkoleń'!G13)*'Ceny szkoleń'!G$8","v":0},{"$f":"IF('Planowanie szkoleń'!I$22=0,0,LOOKUP('Planowanie szkoleń'!I$22,'Ceny szkoleń'!$A$4:$A$6,'Ceny szkoleń'!H$4:H$6))*'Planowanie szkoleń'!I11*('Ceny szkoleń'!H$8)+IF('Priorytety szkoleniowe'!I13=0,0,1*'Liczba dni szkoleń'!H13*'Ceny szkoleń'!H13)*'Ceny szkoleń'!H$8","v":0},{"$f":"IF('Planowanie szkoleń'!J$22=0,0,LOOKUP('Planowanie szkoleń'!J$22,'Ceny szkoleń'!$A$4:$A$6,'Ceny szkoleń'!I$4:I$6))*'Planowanie szkoleń'!J11*('Ceny szkoleń'!I$8)+IF('Priorytety szkoleniowe'!J13=0,0,1*'Liczba dni szkoleń'!I13*'Ceny szkoleń'!I13)*'Ceny szkoleń'!I$8","v":468},{"$f":"IF('Planowanie szkoleń'!K$22=0,0,LOOKUP('Planowanie szkoleń'!K$22,'Ceny szkoleń'!$A$4:$A$6,'Ceny szkoleń'!J$4:J$6))*'Planowanie szkoleń'!K11*('Ceny szkoleń'!J$8)+IF('Priorytety szkoleniowe'!K13=0,0,1*'Liczba dni szkoleń'!J13*'Ceny szkoleń'!J13)*'Ceny szkoleń'!J$8","v":0},{"$f":"IF('Planowanie szkoleń'!L$22=0,0,LOOKUP('Planowanie szkoleń'!L$22,'Ceny szkoleń'!$A$4:$A$6,'Ceny szkoleń'!K$4:K$6))*'Planowanie szkoleń'!L11*('Ceny szkoleń'!K$8)+IF('Priorytety szkoleniowe'!L13=0,0,1*'Liczba dni szkoleń'!K13*'Ceny szkoleń'!K13)*'Ceny szkoleń'!K$8","v":0},{"$f":"IF('Planowanie szkoleń'!M$22=0,0,LOOKUP('Planowanie szkoleń'!M$22,'Ceny szkoleń'!$A$4:$A$6,'Ceny szkoleń'!L$4:L$6))*'Planowanie szkoleń'!M11*('Ceny szkoleń'!L$8)+IF('Priorytety szkoleniowe'!M13=0,0,1*'Liczba dni szkoleń'!L13*'Ceny szkoleń'!L13)*'Ceny szkoleń'!L$8","v":0},{"$f":"IF('Planowanie szkoleń'!N$22=0,0,LOOKUP('Planowanie szkoleń'!N$22,'Ceny szkoleń'!$A$4:$A$6,'Ceny szkoleń'!M$4:M$6))*'Planowanie szkoleń'!N11*('Ceny szkoleń'!M$8)+IF('Priorytety szkoleniowe'!N13=0,0,1*'Liczba dni szkoleń'!M13*'Ceny szkoleń'!M13)*'Ceny szkoleń'!M$8","v":0},{"$f":"IF('Planowanie szkoleń'!O$22=0,0,LOOKUP('Planowanie szkoleń'!O$22,'Ceny szkoleń'!$A$4:$A$6,'Ceny szkoleń'!N$4:N$6))*'Planowanie szkoleń'!O11*('Ceny szkoleń'!N$8)+IF('Priorytety szkoleniowe'!O13=0,0,1*'Liczba dni szkoleń'!N13*'Ceny szkoleń'!N13)*'Ceny szkoleń'!N$8","v":0},{"$f":"SUM(G41:O41)","v":468}]
[2,"Maria Nowak",null,null,null,null,{"$f":"IF('Planowanie szkoleń'!G$22=0,0,LOOKUP('Planowanie szkoleń'!G$22,'Ceny szkoleń'!$A$4:$A$6,'Ceny szkoleń'!F$4:F$6))*'Planowanie szkoleń'!G12*('Ceny szkoleń'!F$8)+IF('Priorytety szkoleniowe'!G14=0,0,1*'Liczba dni szkoleń'!F14*'Ceny szkoleń'!F14)*'Ceny szkoleń'!F$8","v":0},{"$f":"IF('Planowanie szkoleń'!H$22=0,0,LOOKUP('Planowanie szkoleń'!H$22,'Ceny szkoleń'!$A$4:$A$6,'Ceny szkoleń'!G$4:G$6))*'Planowanie szkoleń'!H12*('Ceny szkoleń'!G$8)+IF('Priorytety szkoleniowe'!H14=0,0,1*'Liczba dni szkoleń'!G14*'Ceny szkoleń'!G14)*'Ceny szkoleń'!G$8","v":0},{"$f":"IF('Planowanie szkoleń'!I$22=0,0,LOOKUP('Planowanie szkoleń'!I$22,'Ceny szkoleń'!$A$4:$A$6,'Ceny szkoleń'!H$4:H$6))*'Planowanie szkoleń'!I12*('Ceny szkoleń'!H$8)+IF('Priorytety szkoleniowe'!I14=0,0,1*'Liczba dni szkoleń'!H14*'Ceny szkoleń'!H14)*'Ceny szkoleń'!H$8","v":0},{"$f":"IF('Planowanie szkoleń'!J$22=0,0,LOOKUP('Planowanie szkoleń'!J$22,'Ceny szkoleń'!$A$4:$A$6,'Ceny szkoleń'!I$4:I$6))*'Planowanie szkoleń'!J12*('Ceny szkoleń'!I$8)+IF('Priorytety szkoleniowe'!J14=0,0,1*'Liczba dni szkoleń'!I14*'Ceny szkoleń'!I14)*'Ceny szkoleń'!I$8","v":18},{"$f":"IF('Planowanie szkoleń'!K$22=0,0,LOOKUP('Planowanie szkoleń'!K$22,'Ceny szkoleń'!$A$4:$A$6,'Ceny szkoleń'!J$4:J$6))*'Planowanie szkoleń'!K12*('Ceny szkoleń'!J$8)+IF('Priorytety szkoleniowe'!K14=0,0,1*'Liczba dni szkoleń'!J14*'Ceny szkoleń'!J14)*'Ceny szkoleń'!J$8","v":0},{"$f":"IF('Planowanie szkoleń'!L$22=0,0,LOOKUP('Planowanie szkoleń'!L$22,'Ceny szkoleń'!$A$4:$A$6,'Ceny szkoleń'!K$4:K$6))*'Planowanie szkoleń'!L12*('Ceny szkoleń'!K$8)+IF('Priorytety szkoleniowe'!L14=0,0,1*'Liczba dni szkoleń'!K14*'Ceny szkoleń'!K14)*'Ceny szkoleń'!K$8","v":0},{"$f":"IF('Planowanie szkoleń'!M$22=0,0,LOOKUP('Planowanie szkoleń'!M$22,'Ceny szkoleń'!$A$4:$A$6,'Ceny szkoleń'!L$4:L$6))*'Planowanie szkoleń'!M12*('Ceny szkoleń'!L$8)+IF('Priorytety szkoleniowe'!M14=0,0,1*'Liczba dni szkoleń'!L14*'Ceny szkoleń'!L14)*'Ceny szkoleń'!L$8","v":0},{"$f":"IF('Planowanie szkoleń'!N$22=0,0,LOOKUP('Planowanie szkoleń'!N$22,'Ceny szkoleń'!$A$4:$A$6,'Ceny szkoleń'!M$4:M$6))*'Planowanie szkoleń'!N12*('Ceny szkoleń'!M$8)+IF('Priorytety szkoleniowe'!N14=0,0,1*'Liczba dni szkoleń'!M14*'Ceny szkoleń'!M14)*'Ceny szkoleń'!M$8","v":0},{"$f":"IF('Planowanie szkoleń'!O$22=0,0,LOOKUP('Planowanie szkoleń'!O$22,'Ceny szkoleń'!$A$4:$A$6,'Ceny szkoleń'!N$4:N$6))*'Planowanie szkoleń'!O12*('Ceny szkoleń'!N$8)+IF('Priorytety szkoleniowe'!O14=0,0,1*'Liczba dni szkoleń'!N14*'Ceny szkoleń'!N14)*'Ceny szkoleń'!N$8","v":0},{"$f":"SUM(G42:O42)","v":18}]
[3,"Piotr Krasinski",null,null,null,null,{"$f":"IF('Planowanie szkoleń'!G$22=0,0,LOOKUP('Planowanie szkoleń'!G$22,'Ceny szkoleń'!$A$4:$A$6,'Ceny szkoleń'!F$4:F$6))*'Planowanie szkoleń'!G13*('Ceny szkoleń'!F$8)+IF('Priorytety szkoleniowe'!G15=0,0,1*'Liczba dni szkoleń'!F15*'Ceny szkoleń'!F15)*'Ceny szkoleń'!F$8","v":0},{"$f":"IF('Planowanie szkoleń'!H$22=0,0,LOOKUP('Planowanie szkoleń'!H$22,'Ceny szkoleń'!$A$4:$A$6,'Ceny szkoleń'!G$4:G$6))*'Planowanie szkoleń'!H13*('Ceny szkoleń'!G$8)+IF('Priorytety szkoleniowe'!H15=0,0,1*'Liczba dni szkoleń'!G15*'Ceny szkoleń'!G15)*'Ceny szkoleń'!G$8","v":0},{"$f":"IF('Planowanie szkoleń'!I$22=0,0,LOOKUP('Planowanie szkoleń'!I$22,'Ceny szkoleń'!$A$4:$A$6,'Ceny szkoleń'!H$4:H$6))*'Planowanie szkoleń'!I13*('Ceny szkoleń'!H$8)+IF('Priorytety szkoleniowe'!I15=0,0,1*'Liczba dni szkoleń'!H15*'Ceny szkoleń'!H15)*'Ceny szkoleń'!H$8","v":0},{"$f":"IF('Planowanie szkoleń'!J$22=0,0,LOOKUP('Planowanie szkoleń'!J$22,'Ceny szkoleń'!$A$4:$A$6,'Ceny szkoleń'!I$4:I$6))*'Planowanie szkoleń'!J13*('Ceny szkoleń'!I$8)+IF('Priorytety szkoleniowe'!J15=0,0,1*'Liczba dni szkoleń'!I15*'Ceny szkoleń'!I15)*'Ceny szkoleń'!I$8","v":18},{"$f":"IF('Planowanie szkoleń'!K$22=0,0,LOOKUP('Planowanie szkoleń'!K$22,'Ceny szkoleń'!$A$4:$A$6,'Ceny szkoleń'!J$4:J$6))*'Planowanie szkoleń'!K13*('Ceny szkoleń'!J$8)+IF('Priorytety szkoleniowe'!K15=0,0,1*'Liczba dni szkoleń'!J15*'Ceny szkoleń'!J15)*'Ceny szkoleń'!J$8","v":0},{"$f":"IF('Planowanie szkoleń'!L$22=0,0,LOOKUP('Planowanie szkoleń'!L$22,'Ceny szkoleń'!$A$4:$A$6,'Ceny szkoleń'!K$4:K$6))*'Planowanie szkoleń'!L13*('Ceny szkoleń'!K$8)+IF('Priorytety szkoleniowe'!L15=0,0,1*'Liczba dni szkoleń'!K15*'Ceny szkoleń'!K15)*'Ceny szkoleń'!K$8","v":0},{"$f":"IF('Planowanie szkoleń'!M$22=0,0,LOOKUP('Planowanie szkoleń'!M$22,'Ceny szkoleń'!$A$4:$A$6,'Ceny szkoleń'!L$4:L$6))*'Planowanie szkoleń'!M13*('Ceny szkoleń'!L$8)+IF('Priorytety szkoleniowe'!M15=0,0,1*'Liczba dni szkoleń'!L15*'Ceny szkoleń'!L15)*'Ceny szkoleń'!L$8","v":0},{"$f":"IF('Planowanie szkoleń'!N$22=0,0,LOOKUP('Planowanie szkoleń'!N$22,'Ceny szkoleń'!$A$4:$A$6,'Ceny szkoleń'!M$4:M$6))*'Planowanie szkoleń'!N13*('Ceny szkoleń'!M$8)+IF('Priorytety szkoleniowe'!N15=0,0,1*'Liczba dni szkoleń'!M15*'Ceny szkoleń'!M15)*'Ceny szkoleń'!M$8","v":0},{"$f":"IF('Planowanie szkoleń'!O$22=0,0,LOOKUP('Planowanie szkoleń'!O$22,'Ceny szkoleń'!$A$4:$A$6,'Ceny szkoleń'!N$4:N$6))*'Planowanie szkoleń'!O13*('Ceny szkoleń'!N$8)+IF('Priorytety szkoleniowe'!O15=0,0,1*'Liczba dni szkoleń'!N15*'Ceny szkoleń'!N15)*'Ceny szkoleń'!N$8","v":0},{"$f":"SUM(G43:O43)","v":18}]
[4,null,null,null,null,null,{"$f":"IF('Planowanie szkoleń'!G$22=0,0,LOOKUP('Planowanie szkoleń'!G$22,'Ceny szkoleń'!$A$4:$A$6,'Ceny szkoleń'!F$4:F$6))*'Planowanie szkoleń'!G14*('Ceny szkoleń'!F$8)+IF('Priorytety szkoleniowe'!G16=0,0,1*'Liczba dni szkoleń'!F16*'Ceny szkoleń'!F16)*'Ceny szkoleń'!F$8","v":0},{"$f":"IF('Planowanie szkoleń'!H$22=0,0,LOOKUP('Planowanie szkoleń'!H$22,'Ceny szkoleń'!$A$4:$A$6,'Ceny szkoleń'!G$4:G$6))*'Planowanie szkoleń'!H14*('Ceny szkoleń'!G$8)+IF('Priorytety szkoleniowe'!H16=0,0,1*'Liczba dni szkoleń'!G16*'Ceny szkoleń'!G16)*'Ceny szkoleń'!G$8","v":0},{"$f":"IF('Planowanie szkoleń'!I$22=0,0,LOOKUP('Planowanie szkoleń'!I$22,'Ceny szkoleń'!$A$4:$A$6,'Ceny szkoleń'!H$4:H$6))*'Planowanie szkoleń'!I14*('Ceny szkoleń'!H$8)+IF('Priorytety szkoleniowe'!I16=0,0,1*'Liczba dni szkoleń'!H16*'Ceny szkoleń'!H16)*'Ceny szkoleń'!H$8","v":0},{"$f":"IF('Planowanie szkoleń'!J$22=0,0,LOOKUP('Planowanie szkoleń'!J$22,'Ceny szkoleń'!$A$4:$A$6,'Ceny szkoleń'!I$4:I$6))*'Planowanie szkoleń'!J14*('Ceny szkoleń'!I$8)+IF('Priorytety szkoleniowe'!J16=0,0,1*'Liczba dni szkoleń'!I16*'Ceny szkoleń'!I16)*'Ceny szkoleń'!I$8","v":0},{"$f":"IF('Planowanie szkoleń'!K$22=0,0,LOOKUP('Planowanie szkoleń'!K$22,'Ceny szkoleń'!$A$4:$A$6,'Ceny szkoleń'!J$4:J$6))*'Planowanie szkoleń'!K14*('Ceny szkoleń'!J$8)+IF('Priorytety szkoleniowe'!K16=0,0,1*'Liczba dni szkoleń'!J16*'Ceny szkoleń'!J16)*'Ceny szkoleń'!J$8","v":0},{"$f":"IF('Planowanie szkoleń'!L$22=0,0,LOOKUP('Planowanie szkoleń'!L$22,'Ceny szkoleń'!$A$4:$A$6,'Ceny szkoleń'!K$4:K$6))*'Planowanie szkoleń'!L14*('Ceny szkoleń'!K$8)+IF('Priorytety szkoleniowe'!L16=0,0,1*'Liczba dni szkoleń'!K16*'Ceny szkoleń'!K16)*'Ceny szkoleń'!K$8","v":0},{"$f":"IF('Planowanie szkoleń'!M$22=0,0,LOOKUP('Planowanie szkoleń'!M$22,'Ceny szkoleń'!$A$4:$A$6,'Ceny szkoleń'!L$4:L$6))*'Planowanie szkoleń'!M14*('Ceny szkoleń'!L$8)+IF('Priorytety szkoleniowe'!M16=0,0,1*'Liczba dni szkoleń'!L16*'Ceny szkoleń'!L16)*'Ceny szkoleń'!L$8","v":0},{"$f":"IF('Planowanie szkoleń'!N$22=0,0,LOOKUP('Planowanie szkoleń'!N$22,'Ceny szkoleń'!$A$4:$A$6,'Ceny szkoleń'!M$4:M$6))*'Planowanie szkoleń'!N14*('Ceny szkoleń'!M$8)+IF('Priorytety szkoleniowe'!N16=0,0,1*'Liczba dni szkoleń'!M16*'Ceny szkoleń'!M16)*'Ceny szkoleń'!M$8","v":0},{"$f":"IF('Planowanie szkoleń'!O$22=0,0,LOOKUP('Planowanie szkoleń'!O$22,'Ceny szkoleń'!$A$4:$A$6,'Ceny szkoleń'!N$4:N$6))*'Planowanie szkoleń'!O14*('Ceny szkoleń'!N$8)+IF('Priorytety szkoleniowe'!O16=0,0,1*'Liczba dni szkoleń'!N16*'Ceny szkoleń'!N16)*'Ceny szkoleń'!N$8","v":0},{"$f":"SUM(G44:O44)","v":0}]
[5,null,null,null,null,null,{"$f":"IF('Planowanie szkoleń'!G$22=0,0,LOOKUP('Planowanie szkoleń'!G$22,'Ceny szkoleń'!$A$4:$A$6,'Ceny szkoleń'!F$4:F$6))*'Planowanie szkoleń'!G15*('Ceny szkoleń'!F$8)+IF('Priorytety szkoleniowe'!G17=0,0,1*'Liczba dni szkoleń'!F17*'Ceny szkoleń'!F17)*'Ceny szkoleń'!F$8","v":0},{"$f":"IF('Planowanie szkoleń'!H$22=0,0,LOOKUP('Planowanie szkoleń'!H$22,'Ceny szkoleń'!$A$4:$A$6,'Ceny szkoleń'!G$4:G$6))*'Planowanie szkoleń'!H15*('Ceny szkoleń'!G$8)+IF('Priorytety szkoleniowe'!H17=0,0,1*'Liczba dni szkoleń'!G17*'Ceny szkoleń'!G17)*'Ceny szkoleń'!G$8","v":0},{"$f":"IF('Planowanie szkoleń'!I$22=0,0,LOOKUP('Planowanie szkoleń'!I$22,'Ceny szkoleń'!$A$4:$A$6,'Ceny szkoleń'!H$4:H$6))*'Planowanie szkoleń'!I15*('Ceny szkoleń'!H$8)+IF('Priorytety szkoleniowe'!I17=0,0,1*'Liczba dni szkoleń'!H17*'Ceny szkoleń'!H17)*'Ceny szkoleń'!H$8","v":0},{"$f":"IF('Planowanie szkoleń'!J$22=0,0,LOOKUP('Planowanie szkoleń'!J$22,'Ceny szkoleń'!$A$4:$A$6,'Ceny szkoleń'!I$4:I$6))*'Planowanie szkoleń'!J15*('Ceny szkoleń'!I$8)+IF('Priorytety szkoleniowe'!J17=0,0,1*'Liczba dni szkoleń'!I17*'Ceny szkoleń'!I17)*'Ceny szkoleń'!I$8","v":0},{"$f":"IF('Planowanie szkoleń'!K$22=0,0,LOOKUP('Planowanie szkoleń'!K$22,'Ceny szkoleń'!$A$4:$A$6,'Ceny szkoleń'!J$4:J$6))*'Planowanie szkoleń'!K15*('Ceny szkoleń'!J$8)+IF('Priorytety szkoleniowe'!K17=0,0,1*'Liczba dni szkoleń'!J17*'Ceny szkoleń'!J17)*'Ceny szkoleń'!J$8","v":0},{"$f":"IF('Planowanie szkoleń'!L$22=0,0,LOOKUP('Planowanie szkoleń'!L$22,'Ceny szkoleń'!$A$4:$A$6,'Ceny szkoleń'!K$4:K$6))*'Planowanie szkoleń'!L15*('Ceny szkoleń'!K$8)+IF('Priorytety szkoleniowe'!L17=0,0,1*'Liczba dni szkoleń'!K17*'Ceny szkoleń'!K17)*'Ceny szkoleń'!K$8","v":0},{"$f":"IF('Planowanie szkoleń'!M$22=0,0,LOOKUP('Planowanie szkoleń'!M$22,'Ceny szkoleń'!$A$4:$A$6,'Ceny szkoleń'!L$4:L$6))*'Planowanie szkoleń'!M15*('Ceny szkoleń'!L$8)+IF('Priorytety szkoleniowe'!M17=0,0,1*'Liczba dni szkoleń'!L17*'Ceny szkoleń'!L17)*'Ceny szkoleń'!L$8","v":0},{"$f":"IF('Planowanie szkoleń'!N$22=0,0,LOOKUP('Planowanie szkoleń'!N$22,'Ceny szkoleń'!$A$4:$A$6,'Ceny szkoleń'!M$4:M$6))*'Planowanie szkoleń'!N15*('Ceny szkoleń'!M$8)+IF('Priorytety szkoleniowe'!N17=0,0,1*'Liczba dni szkoleń'!M17*'Ceny szkoleń'!M17)*'Ceny szkoleń'!M$8","v":0},{"$f":"IF('Planowanie szkoleń'!O$22=0,0,LOOKUP('Planowanie szkoleń'!O$22,'Ceny szkoleń'!$A$4:$A$6,'Ceny szkoleń'!N$4:N$6))*'Planowanie szkoleń'!O15*('Ceny szkoleń'!N$8)+IF('Priorytety szkoleniowe'!O17=0,0,1*'Liczba dni szkoleń'!N17*'Ceny szkoleń'!N17)*'Ceny szkoleń'!N$8","v":0},{"$f":"SUM(G45:O45)","v":0}]
["Suma kosztów szkoleń",null,null,null,null,null,{"$f":"SUM(G41:G45)","v":0},0,0,504,0,0,0,0,0,504]

{"sheet":"Ceny szkoleń - wykonanie","index":5,"n_rows":8,"n_cols":14,"rows_kept":8,"cut":false,"hidden":false,"merged":[[6,2,6,4],[7,2,7,4],[1,11,1,13],[2,2,2,4],[3,2,3,4],[4,2,4,4],[0,0,0,13],[1,2,1,4],[1,5,1,7],[1,8,1,10],[5,2,5,4]]}
["Szkolenia planowane"]
[null,null,null,null,null,"Grupa tematyczna: Prawo",null,null,"Grupa tematyczna: Finanse",null,null,"Grupa tematyczna 3"]
["Lp.","Podtyp szkolenia","Sposób wyliczenia ceny",null,null,"Prawo administracyjne","Prawo finansów publicznych","Prawo zamówień publicznych","Audyt","Controling","Ekonomia","Tematyka 1","Tamatyka 2","Tematyka 3"]
[1,"otwarte","cena za osobodzień",null,null,{"$f":"'Ceny szkoleń'!F4","v":1000},{"$f":"'Ceny szkoleń'!G4","v":1000},{"$f":"'Ceny szkoleń'!H4","v":1000},{"$f":"'Ceny szkoleń'!I4","v":200},{"$f":"'Ceny szkoleń'!J4","v":500},{"$f":"'Ceny szkoleń'!K4","v":200},{"$f":"'Ceny szkoleń'!L4","v":1000},{"$f":"'Ceny szkoleń'!M4","v":800},750]
[2,"zewnętrzne zamknięte","cena za osobodzień",null,null,{"$f":"'Ceny szkoleń'!F5","v":500},{"$f":"'Ceny szkoleń'!G5","v":500},{"$f":"'Ceny szkoleń'!H5","v":500},{"$f":"'Ceny szkoleń'!I5","v":80},{"$f":"'Ceny szkoleń'!J5","v":300},{"$f":"'Ceny szkoleń'!K5","v":80},{"$f":"'Ceny szkoleń'!L5","v":600},{"$f":"'Ceny szkoleń'!M5","v":500},{"$f":"'Ceny szkoleń'!N5","v":500}]
[3,"wewnętrzne zamknięte","cena za osobodzień",null,null,{"$f":"'Ceny szkoleń'!F6","v":250},{"$f":"'Ceny szkoleń'!G6","v":250},{"$f":"'Ceny szkoleń'!H6","v":200},{"$f":"'Ceny szkoleń'!I6","v":20},{"$f":"'Ceny szkoleń'!J6","v":200},{"$f":"'Ceny szkoleń'!K6","v":20},{"$f":"'Ceny szkoleń'!L6","v":50},{"$f":"'Ceny szkoleń'!M6","v":50},{"$f":"'Ceny szkoleń'!N6","v":50}]
[4]
[null,"Udział pracowników w finansowaniu","%",null,null,0,0,0,0,0,0,0.05,0.15,0.15]

{"sheet":"Wykonanie szkoleń ad hoc","index":6,"n_rows":30,"n_cols":15,"rows_kept":30,"cut":false,"hidden":false,"merged":[[23,2,24,5],[19,0,19,5],[2,6,2,8],[2,12,2,14],[1,0,1,14],[2,9,2,11],[2,3,2,5],[27,2,27,5],[28,2,28,5],[29,2,29,5],[9,0,9,5],[26,2,26,5],[11,0,11,14],[12,3,12,5],[12,6,12,8],[12,9,12,11],[12,12,12,14],[23,0,23,1],[22,0,22,14],[25,2,25,5],[23,6,23,8],[23,12,23,14],[23,9,23,11]]}
[]
["Przeprowadzone szkolenia ad hoc"]
[null,null,null,"Jednostka organizacyjna",null,null,"Grupa tematyczna: Prawo",null,null,"Grupa tematyczna: Finanse",null,null,"Grupa tematyczna 3"]
["Lp.","Pracownik","Członek korpusu służby cywilnej tak/nie","Dział","Wydział","Departament","Prawo administracyjne","Prawo finansów publicznych","Prawo zamówień publicznych","Audyt","Controling","Ekonomia","Tematyka 1","Tamatyka 2","Tematyka 3"]
[1,"Jan Kowalski","tak",null,null,null,1,null,null,1]
[2,"Maria Nowak","tak"]
[3,"Piotr Krasinski","tak"]
[4,null,"tak",null,null,null,null,null,null,null,null,null,null,null,1]
[5,null,"nie"]
["SUMA",null,null,null,null,null,{"$f":"SUM(G5:G9)","v":1},0,0,1,0,0,0,0,1]
[]
["Liczba dni szkoleniowych ad hoc"]
[null,null,null,"Jednostka organizacyjna",null,null,"Grupa tematyczna: Prawo",null,null,"Grupa tematyczna: Finanse",null,null,"Grupa tematyczna 3"]
["Lp.","Pracownik","Członek korpusu służby cywilnej tak/nie","Dział","Wydział","Departament","Prawo administracyjne","Prawo finansów publicznych","Prawo zamówień publicznych","Audyt","Controling","Ekonomia","Tematyka 1","Tamatyka 2","Tematyka 3"]
[1,"Jan Kowalski","tak",null,null,null,1,null,null,1]
[2,"Maria Nowak","tak"]
[3,"Piotr Krasinski","tak"]
[4,null,"tak",null,null,null,null,null,null,null,null,null,null,null,3]
[5,null,"nie"]
["SUMA",null,null,null,null,null,{"$f":"SUM(G15:G19)","v":1},0,0,1,0,0,0,0,3]
[]
[]
["Rzeczywiste koszty przeprowadzonych szkoleń"]
[null,null,null,null,null,null,"Grupa tematyczna: Prawo",null,null,"Grupa tematyczna: Finanse",null,null,"Grupa tematyczna 3"]
["Lp.","Pracownik",null,null,null,null,"Prawo administracyjne","Prawo finansów publicznych","Prawo zamówień publicznych","Audyt","Controling","Ekonomia","Tematyka 1","Tamatyka 2","Tematyka 3"]
[1,"Jan Kowalski","cena za osobodzień",null,null,null,220,null,null,500]
[2,"Maria Nowak","cena za osobodzień"]
[3,"Piotr Krasinski","cena za osobodzień"]
[4,null,"cena za osobodzień"]
[5,null,"cena za osobodzień"]

{"sheet":"Wykonanie planu","index":7,"n_rows":43,"n_cols":15,"rows_kept":43,"cut":false,"hidden":false,"merged":[[9,0,9,1],[2,0,2,11],[0,0,0,1],[0,2,0,4],[0,5,0,7],[0,8,0,10],[11,0,11,11],[18,0,18,1],[38,0,38,11],[39,0,39,1],[20,0,20,11],[27,0,27,1],[29,0,29,11],[36,0,36,1]]}
[null,null,"Grupa tematyczna: Prawo",null,null,"Grupa tematyczna: Finanse",null,null,"Grupa tematyczna 3"]
["Lp.","Szkolenie","Prawo administracyjne","Prawo finansów publicznych","Prawo zamówień publicznych","Audyt","Controling","Ekonomia","Tematyka 1","Tamatyka 2","Tematyka 3","Suma "]
["Wykonane szkolenia",null,null,null,null,null,null,null,null,null,null,null,null,"Bieżąca data",{"$f":"TODAY()","v":"2012-05-21"}]
[1,"szkolenie 1",{"$f":"IF('Planowanie szkoleń'!G24=0,0,IF($O$5-'Planowanie szkoleń'!G23>=0,1,0))","v":1},{"$f":"IF('Planowanie szkoleń'!H24=0,0,IF($O$5-'Planowanie szkoleń'!H23>=0,1,0))","v":1},{"$f":"IF('Planowanie szkoleń'!I24=0,0,IF($O$5-'Planowanie szkoleń'!I23>=0,1,0))","v":1},{"$f":"IF('Planowanie szkoleń'!J24=0,0,IF($O$5-'Planowanie szkoleń'!J23>=0,1,0))","v":1},{"$f":"IF('Planowanie szkoleń'!K24=0,0,IF($O$5-'Planowanie szkoleń'!K23>=0,1,0))","v":0},{"$f":"IF('Planowanie szkoleń'!L24=0,0,IF($O$5-'Planowanie szkoleń'!L23>=0,1,0))","v":0},{"$f":"IF('Planowanie szkoleń'!M24=0,0,IF($O$5-'Planowanie szkoleń'!M23>=0,1,0))","v":0},{"$f":"IF('Planowanie szkoleń'!N24=0,0,IF($O$5-'Planowanie szkoleń'!N23>=0,1,0))","v":0},{"$f":"IF('Planowanie szkoleń'!O24=0,0,IF($O$5-'Planowanie szkoleń'!O23>=0,1,0))","v":1},{"$f":"SUM(C4:K4)","v":5},null,"Początek roku","2012-01-01"]
[2,"szkolenie 2",{"$f":"IF('Planowanie szkoleń'!G25=0,0,IF($O$5-'Planowanie szkoleń'!G25>=0,1,0))","v":0},{"$f":"IF('Planowanie szkoleń'!H25=0,0,IF($O$5-'Planowanie szkoleń'!H25>=0,1,0))","v":0},{"$f":"IF('Planowanie szkoleń'!I25=0,0,IF($O$5-'Planowanie szkoleń'!I25>=0,1,0))","v":0},{"$f":"IF('Planowanie szkoleń'!J25=0,0,IF($O$5-'Planowanie szkoleń'!J25>=0,1,0))","v":0},{"$f":"IF('Planowanie szkoleń'!K25=0,0,IF($O$5-'Planowanie szkoleń'!K25>=0,1,0))","v":0},{"$f":"IF('Planowanie szkoleń'!L25=0,0,IF($O$5-'Planowanie szkoleń'!L25>=0,1,0))","v":0},{"$f":"IF('Planowanie szkoleń'!M25=0,0,IF($O$5-'Planowanie szkoleń'!M25>=0,1,0))","v":0},{"$f":"IF('Planowanie szkoleń'!N25=0,0,IF($O$5-'Planowanie szkoleń'!N25>=0,1,0))","v":0},{"$f":"IF('Planowanie szkoleń'!O25=0,0,IF($O$5-'Planowanie szkoleń'!O25>=0,1,0))","v":0},0,null,"miesiąc",{"$f":"CEILING((O3-O4)/30,1)","v":5}]
[3,"szkolenie 3",{"$f":"IF('Planowanie szkoleń'!G27=0,0,IF($O$5-'Planowanie szkoleń'!G27>=0,1,0))","v":0},{"$f":"IF('Planowanie szkoleń'!H27=0,0,IF($O$5-'Planowanie szkoleń'!H27>=0,1,0))","v":0},{"$f":"IF('Planowanie szkoleń'!I27=0,0,IF($O$5-'Planowanie szkoleń'!I27>=0,1,0))","v":0},{"$f":"IF('Planowanie szkoleń'!J27=0,0,IF($O$5-'Planowanie szkoleń'!J27>=0,1,0))","v":0},{"$f":"IF('Planowanie szkoleń'!K27=0,0,IF($O$5-'Planowanie szkoleń'!K27>=0,1,0))","v":0},{"$f":"IF('Planowanie szkoleń'!L27=0,0,IF($O$5-'Planowanie szkoleń'!L27>=0,1,0))","v":0},{"$f":"IF('Planowanie szkoleń'!M27=0,0,IF($O$5-'Planowanie szkoleń'!M27>=0,1,0))","v":0},{"$f":"IF('Planowanie szkoleń'!N27=0,0,IF($O$5-'Planowanie szkoleń'!N27>=0,1,0))","v":0},{"$f":"IF('Planowanie szkoleń'!O27=0,0,IF($O$5-'Planowanie szkoleń'!O27>=0,1,0))","v":0},0]
[4,null,null,null,null,null,null,null,null,null,null,0]
[5,null,null,null,null,null,null,null,null,null,null,0]
[null,"Szkolenia ad hoc",{"$f":"'Wykonanie szkoleń ad hoc'!G10","v":1},{"$f":"'Wykonanie szkoleń ad hoc'!H10","v":0},{"$f":"'Wykonanie szkoleń ad hoc'!I10","v":0},{"$f":"'Wykonanie szkoleń ad hoc'!J10","v":1},{"$f":"'Wykonanie szkoleń ad hoc'!K10","v":0},{"$f":"'Wykonanie szkoleń ad hoc'!L10","v":0},{"$f":"'Wykonanie szkoleń ad hoc'!M10","v":0},{"$f":"'Wykonanie szkoleń ad hoc'!N10","v":0},{"$f":"'Wykonanie szkoleń ad hoc'!O10","v":1},3]
["Liczba zrealizowanych szkoleń",null,{"$f":"SUM(C4:C9)","v":2},{"$f":"SUM(D4:D9)","v":1},1,2,0,0,0,0,2,{"$f":"SUM(L4:L9)","v":8}]
[]
["Liczba przeszkolonych osób"]
[1,"szkolenie 1",{"$f":"IF('Planowanie szkoleń'!G$21=0,0,C4*'Planowanie szkoleń'!G23)","v":3},{"$f":"IF('Planowanie szkoleń'!H$21=0,0,D4*'Planowanie szkoleń'!H23)","v":1},{"$f":"IF('Planowanie szkoleń'!I$21=0,0,E4*'Planowanie szkoleń'!I23)","v":2},{"$f":"IF('Planowanie szkoleń'!J$21=0,0,F4*'Planowanie szkoleń'!J23)","v":3},{"$f":"IF('Planowanie szkoleń'!K$21=0,0,G4*'Planowanie szkoleń'!K23)","v":0},{"$f":"IF('Planowanie szkoleń'!L$21=0,0,H4*'Planowanie szkoleń'!L23)","v":0},{"$f":"IF('Planowanie szkoleń'!M$21=0,0,I4*'Planowanie szkoleń'!M23)","v":0},{"$f":"IF('Planowanie szkoleń'!N$21=0,0,J4*'Planowanie szkoleń'!N23)","v":0},{"$f":"IF('Planowanie szkoleń'!O$21=0,0,K4*'Planowanie szkoleń'!O23)","v":1},{"$f":"SUM(C13:K13)","v":10}]
[2,"szkolenie 2",{"$f":"IF('Planowanie szkoleń'!G$21=0,0,C5*'Planowanie szkoleń'!G25)","v":0},{"$f":"IF('Planowanie szkoleń'!H$21=0,0,D5*'Planowanie szkoleń'!H25)","v":0},{"$f":"IF('Planowanie szkoleń'!I$21=0,0,E5*'Planowanie szkoleń'!I25)","v":0},{"$f":"IF('Planowanie szkoleń'!J$21=0,0,F5*'Planowanie szkoleń'!J25)","v":0},{"$f":"IF('Planowanie szkoleń'!K$21=0,0,G5*'Planowanie szkoleń'!K25)","v":0},{"$f":"IF('Planowanie szkoleń'!L$21=0,0,H5*'Planowanie szkoleń'!L25)","v":0},{"$f":"IF('Planowanie szkoleń'!M$21=0,0,I5*'Planowanie szkoleń'!M25)","v":0},{"$f":"IF('Planowanie szkoleń'!N$21=0,0,J5*'Planowanie szkoleń'!N25)","v":0},{"$f":"IF('Planowanie szkoleń'!O$21=0,0,K5*'Planowanie szkoleń'!O25)","v":0},0]
[3,"szkolenie 3",{"$f":"IF('Planowanie szkoleń'!G$21=0,0,C6*'Planowanie szkoleń'!G27)","v":0},{"$f":"IF('Planowanie szkoleń'!H$21=0,0,D6*'Planowanie szkoleń'!H27)","v":0},{"$f":"IF('Planowanie szkoleń'!I$21=0,0,E6*'Planowanie szkoleń'!I27)","v":0},{"$f":"IF('Planowanie szkoleń'!J$21=0,0,F6*'Planowanie szkoleń'!J27)","v":0},{"$f":"IF('Planowanie szkoleń'!K$21=0,0,G6*'Planowanie szkoleń'!K27)","v":0},{"$f":"IF('Planowanie szkoleń'!L$21=0,0,H6*'Planowanie szkoleń'!L27)","v":0},{"$f":"IF('Planowanie szkoleń'!M$21=0,0,I6*'Planowanie szkoleń'!M27)","v":0},{"$f":"IF('Planowanie szkoleń'!N$21=0,0,J6*'Planowanie szkoleń'!N27)","v":0},{"$f":"IF('Planowanie szkoleń'!O$21=0,0,K6*'Planowanie szkoleń'!O27)","v":0},0]
[4,null,null,null,null,null,null,null,null,null,null,0]
[5,null,null,null,null,null,null,null,null,null,null,0]
[null,"Szkolenia ad hoc",{"$f":"C9","v":1},{"$f":"D9","v":0},0,1,0,0,0,0,1,3]
["Suma",null,{"$f":"SUM(C13:C18)","v":4},1,2,4,0,0,0,0,{"$f":"SUM(K13:K18)","v":2},{"$f":"SUM(L13:L18)","v":13}]
[]
["Zrealizowane osobodni szkoleniowe"]
[1,"szkolenie 1",{"$f":"IF('Planowanie szkoleń'!G23=0,0,C4*'Planowanie szkoleń'!G$18/'Planowanie szkoleń'!G$21)","v":4},{"$f":"IF('Planowanie szkoleń'!H23=0,0,D4*'Planowanie szkoleń'!H$18/'Planowanie szkoleń'!H$21)","v":4},{"$f":"IF('Planowanie szkoleń'!I23=0,0,E4*'Planowanie szkoleń'!I$18/'Planowanie szkoleń'!I$21)","v":10},{"$f":"IF('Planowanie szkoleń'!J23=0,0,F4*'Planowanie szkoleń'!J$18/'Planowanie szkoleń'!J$21)","v":9},{"$f":"IF('Planowanie szkoleń'!K23=0,0,G4*'Planowanie szkoleń'!K$18/'Planowanie szkoleń'!K$21)","v":0},{"$f":"IF('Planowanie szkoleń'!L23=0,0,H4*'Planowanie szkoleń'!L$18/'Planowanie szkoleń'!L$21)","v":0},{"$f":"IF('Planowanie szkoleń'!M23=0,0,I4*'Planowanie szkoleń'!M$18/'Planowanie szkoleń'!M$21)","v":0},{"$f":"IF('Planowanie szkoleń'!N23=0,0,J4*'Planowanie szkoleń'!N$18/'Planowanie szkoleń'!N$21)","v":0},{"$f":"IF('Planowanie szkoleń'!O23=0,0,K4*'Planowanie szkoleń'!O$18/'Planowanie szkoleń'!O$21)","v":10},{"$f":"SUM(C22:K22)","v":37}]
[2,"szkolenie 2",{"$f":"IF('Planowanie szkoleń'!G25=0,0,C5*'Planowanie szkoleń'!G$18/'Planowanie szkoleń'!G$21)","v":0},{"$f":"IF('Planowanie szkoleń'!H25=0,0,D5*'Planowanie szkoleń'!H$18/'Planowanie szkoleń'!H$21)","v":0},{"$f":"IF('Planowanie szkoleń'!I25=0,0,E5*'Planowanie szkoleń'!I$18/'Planowanie szkoleń'!I$21)","v":0},{"$f":"IF('Planowanie szkoleń'!J25=0,0,F5*'Planowanie szkoleń'!J$18/'Planowanie szkoleń'!J$21)","v":0},{"$f":"IF('Planowanie szkoleń'!K25=0,0,G5*'Planowanie szkoleń'!K$18/'Planowanie szkoleń'!K$21)","v":0},{"$f":"IF('Planowanie szkoleń'!L25=0,0,H5*'Planowanie szkoleń'!L$18/'Planowanie szkoleń'!L$21)","v":0},{"$f":"IF('Planowanie szkoleń'!M25=0,0,I5*'Planowanie szkoleń'!M$18/'Planowanie szkoleń'!M$21)","v":0},{"$f":"IF('Planowanie szkoleń'!N25=0,0,J5*'Planowanie szkoleń'!N$18/'Planowanie szkoleń'!N$21)","v":0},{"$f":"IF('Planowanie szkoleń'!O25=0,0,K5*'Planowanie szkoleń'!O$18/'Planowanie szkoleń'!O$21)","v":0},0]
[3,"szkolenie 3",{"$f":"IF('Planowanie szkoleń'!G27=0,0,C6*'Planowanie szkoleń'!G$18/'Planowanie szkoleń'!G$21)","v":0},{"$f":"IF('Planowanie szkoleń'!H27=0,0,D6*'Planowanie szkoleń'!H$18/'Planowanie szkoleń'!H$21)","v":0},{"$f":"IF('Planowanie szkoleń'!I27=0,0,E6*'Planowanie szkoleń'!I$18/'Planowanie szkoleń'!I$21)","v":0},{"$f":"IF('Planowanie szkoleń'!J27=0,0,F6*'Planowanie szkoleń'!J$18/'Planowanie szkoleń'!J$21)","v":0},{"$f":"IF('Planowanie szkoleń'!K27=0,0,G6*'Planowanie szkoleń'!K$18/'Planowanie szkoleń'!K$21)","v":0},{"$f":"IF('Planowanie szkoleń'!L27=0,0,H6*'Planowanie szkoleń'!L$18/'Planowanie szkoleń'!L$21)","v":0},{"$f":"IF('Planowanie szkoleń'!M27=0,0,I6*'Planowanie szkoleń'!M$18/'Planowanie szkoleń'!M$21)","v":0},{"$f":"IF('Planowanie szkoleń'!N27=0,0,J6*'Planowanie szkoleń'!N$18/'Planowanie szkoleń'!N$21)","v":0},{"$f":"IF('Planowanie szkoleń'!O27=0,0,K6*'Planowanie szkoleń'!O$18/'Planowanie szkoleń'!O$21)","v":0},0]
[4,null,null,null,null,null,null,null,null,null,null,0]
[5,null,null,null,null,null,null,null,null,null,null,0]
[null,"Szkolenia ad hoc",{"$f":"'Wykonanie szkoleń ad hoc'!G20","v":1},{"$f":"'Wykonanie szkoleń ad hoc'!H20","v":0},{"$f":"'Wykonanie szkoleń ad hoc'!I20","v":0},{"$f":"'Wykonanie szkoleń ad hoc'!J20","v":1},{"$f":"'Wykonanie szkoleń ad hoc'!K20","v":0},{"$f":"'Wykonanie szkoleń ad hoc'!L20","v":0},{"$f":"'Wykonanie szkoleń ad hoc'!M20","v":0},{"$f":"'Wykonanie szkoleń ad hoc'!N20","v":0},{"$f":"'Wykonanie szkoleń ad hoc'!O20","v":3},5]
["Suma",null,{"$f":"SUM(C22:C27)","v":5},{"$f":"SUM(D22:D27)","v":4},10,10,0,0,0,0,13,{"$f":"SUM(L22:L26)","v":37}]
[]
["Zrealizowane koszty szkoleń"]
[1,"szkolenie 1",{"$f":"IF('Planowanie szkoleń'!G$22=0,0,LOOKUP('Planowanie szkoleń'!G$22,'Ceny szkoleń - wykonanie'!$A$4:$A$6,'Ceny szkoleń - wykonanie'!F4:F6))*C22*(1-'Ceny szkoleń - wykonanie'!F$8)","v":4000},{"$f":"IF('Planowanie szkoleń'!H$22=0,0,LOOKUP('Planowanie szkoleń'!H$22,'Ceny szkoleń - wykonanie'!$A$4:$A$6,'Ceny szkoleń - wykonanie'!G4:G6))*D22*(1-'Ceny szkoleń - wykonanie'!G$8)","v":2000},{"$f":"IF('Planowanie szkoleń'!I$22=0,0,LOOKUP('Planowanie szkoleń'!I$22,'Ceny szkoleń - wykonanie'!$A$4:$A$6,'Ceny szkoleń - wykonanie'!H4:H6))*E22*(1-'Ceny szkoleń - wykonanie'!H$8)","v":10000},{"$f":"IF('Planowanie szkoleń'!J$22=0,0,LOOKUP('Planowanie szkoleń'!J$22,'Ceny szkoleń - wykonanie'!$A$4:$A$6,'Ceny szkoleń - wykonanie'!I4:I6))*F22*(1-'Ceny szkoleń - wykonanie'!I$8)","v":180},{"$f":"IF('Planowanie szkoleń'!K$22=0,0,LOOKUP('Planowanie szkoleń'!K$22,'Ceny szkoleń - wykonanie'!$A$4:$A$6,'Ceny szkoleń - wykonanie'!J4:J6))*G22*(1-'Ceny szkoleń - wykonanie'!J$8)","v":0},{"$f":"IF('Planowanie szkoleń'!L$22=0,0,LOOKUP('Planowanie szkoleń'!L$22,'Ceny szkoleń - wykonanie'!$A$4:$A$6,'Ceny szkoleń - wykonanie'!K4:K6))*H22*(1-'Ceny szkoleń - wykonanie'!K$8)","v":0},{"$f":"IF('Planowanie szkoleń'!M$22=0,0,LOOKUP('Planowanie szkoleń'!M$22,'Ceny szkoleń - wykonanie'!$A$4:$A$6,'Ceny szkoleń - wykonanie'!L4:L6))*I22*(1-'Ceny szkoleń - wykonanie'!L$8)","v":0},{"$f":"IF('Planowanie szkoleń'!N$22=0,0,LOOKUP('Planowanie szkoleń'!N$22,'Ceny szkoleń - wykonanie'!$A$4:$A$6,'Ceny szkoleń - wykonanie'!M4:M6))*J22*(1-'Ceny szkoleń - wykonanie'!M$8)","v":0},{"$f":"IF('Planowanie szkoleń'!O$22=0,0,LOOKUP('Planowanie szkoleń'!O$22,'Ceny szkoleń - wykonanie'!$A$4:$A$6,'Ceny szkoleń - wykonanie'!N4:N6))*K22*(1-'Ceny szkoleń - wykonanie'!N$8)","v":425},{"$f":"SUM(C31:K31)","v":16605}]
[2,"szkolenie 2",{"$f":"IF('Planowanie szkoleń'!G$22=0,0,LOOKUP('Planowanie szkoleń'!G$22,'Ceny szkoleń - wykonanie'!$A$4:$A$6,'Ceny szkoleń - wykonanie'!F5:F7))*C23*(1-'Ceny szkoleń - wykonanie'!F$8)","v":0},{"$f":"IF('Planowanie szkoleń'!H$22=0,0,LOOKUP('Planowanie szkoleń'!H$22,'Ceny szkoleń - wykonanie'!$A$4:$A$6,'Ceny szkoleń - wykonanie'!G5:G7))*D23*(1-'Ceny szkoleń - wykonanie'!G$8)","v":0},{"$f":"IF('Planowanie szkoleń'!I$22=0,0,LOOKUP('Planowanie szkoleń'!I$22,'Ceny szkoleń - wykonanie'!$A$4:$A$6,'Ceny szkoleń - wykonanie'!H5:H7))*E23*(1-'Ceny szkoleń - wykonanie'!H$8)","v":0},{"$f":"IF('Planowanie szkoleń'!J$22=0,0,LOOKUP('Planowanie szkoleń'!J$22,'Ceny szkoleń - wykonanie'!$A$4:$A$6,'Ceny szkoleń - wykonanie'!I5:I7))*F23*(1-'Ceny szkoleń - wykonanie'!I$8)","v":0},{"$f":"IF('Planowanie szkoleń'!K$22=0,0,LOOKUP('Planowanie szkoleń'!K$22,'Ceny szkoleń - wykonanie'!$A$4:$A$6,'Ceny szkoleń - wykonanie'!J5:J7))*G23*(1-'Ceny szkoleń - wykonanie'!J$8)","v":0},{"$f":"IF('Planowanie szkoleń'!L$22=0,0,LOOKUP('Planowanie szkoleń'!L$22,'Ceny szkoleń - wykonanie'!$A$4:$A$6,'Ceny szkoleń - wykonanie'!K5:K7))*H23*(1-'Ceny szkoleń - wykonanie'!K$8)","v":0},{"$f":"IF('Planowanie szkoleń'!M$22=0,0,LOOKUP('Planowanie szkoleń'!M$22,'Ceny szkoleń - wykonanie'!$A$4:$A$6,'Ceny szkoleń - wykonanie'!L5:L7))*I23*(1-'Ceny szkoleń - wykonanie'!L$8)","v":0},{"$f":"IF('Planowanie szkoleń'!N$22=0,0,LOOKUP('Planowanie szkoleń'!N$22,'Ceny szkoleń - wykonanie'!$A$4:$A$6,'Ceny szkoleń - wykonanie'!M5:M7))*J23*(1-'Ceny szkoleń - wykonanie'!M$8)","v":0},{"$f":"IF('Planowanie szkoleń'!O$22=0,0,LOOKUP('Planowanie szkoleń'!O$22,'Ceny szkoleń - wykonanie'!$A$4:$A$6,'Ceny szkoleń - wykonanie'!N5:N7))*K23*(1-'Ceny szkoleń - wykonanie'!N$8)","v":0},0]
[3,"szkolenie 3",{"$f":"IF('Planowanie szkoleń'!G$22=0,0,LOOKUP('Planowanie szkoleń'!G$22,'Ceny szkoleń - wykonanie'!$A$4:$A$6,'Ceny szkoleń - wykonanie'!F6:F8))*C24*(1-'Ceny szkoleń - wykonanie'!F$8)","v":0},{"$f":"IF('Planowanie szkoleń'!H$22=0,0,LOOKUP('Planowanie szkoleń'!H$22,'Ceny szkoleń - wykonanie'!$A$4:$A$6,'Ceny szkoleń - wykonanie'!G6:G8))*D24*(1-'Ceny szkoleń - wykonanie'!G$8)","v":0},{"$f":"IF('Planowanie szkoleń'!I$22=0,0,LOOKUP('Planowanie szkoleń'!I$22,'Ceny szkoleń - wykonanie'!$A$4:$A$6,'Ceny szkoleń - wykonanie'!H6:H8))*E24*(1-'Ceny szkoleń - wykonanie'!H$8)","v":0},{"$f":"IF('Planowanie szkoleń'!J$22=0,0,LOOKUP('Planowanie szkoleń'!J$22,'Ceny szkoleń - wykonanie'!$A$4:$A$6,'Ceny szkoleń - wykonanie'!I6:I8))*F24*(1-'Ceny szkoleń - wykonanie'!I$8)","v":0},{"$f":"IF('Planowanie szkoleń'!K$22=0,0,LOOKUP('Planowanie szkoleń'!K$22,'Ceny szkoleń - wykonanie'!$A$4:$A$6,'Ceny szkoleń - wykonanie'!J6:J8))*G24*(1-'Ceny szkoleń - wykonanie'!J$8)","v":0},{"$f":"IF('Planowanie szkoleń'!L$22=0,0,LOOKUP('Planowanie szkoleń'!L$22,'Ceny szkoleń - wykonanie'!$A$4:$A$6,'Ceny szkoleń - wykonanie'!K6:K8))*H24*(1-'Ceny szkoleń - wykonanie'!K$8)","v":0},{"$f":"IF('Planowanie szkoleń'!M$22=0,0,LOOKUP('Planowanie szkoleń'!M$22,'Ceny szkoleń - wykonanie'!$A$4:$A$6,'Ceny szkoleń - wykonanie'!L6:L8))*I24*(1-'Ceny szkoleń - wykonanie'!L$8)","v":0},{"$f":"IF('Planowanie szkoleń'!N$22=0,0,LOOKUP('Planowanie szkoleń'!N$22,'Ceny szkoleń - wykonanie'!$A$4:$A$6,'Ceny szkoleń - wykonanie'!M6:M8))*J24*(1-'Ceny szkoleń - wykonanie'!M$8)","v":0},{"$f":"IF('Planowanie szkoleń'!O$22=0,0,LOOKUP('Planowanie szkoleń'!O$22,'Ceny szkoleń - wykonanie'!$A$4:$A$6,'Ceny szkoleń - wykonanie'!N6:N8))*K24*(1-'Ceny szkoleń - wykonanie'!N$8)","v":0},0]
[4,null,null,null,null,null,null,null,null,null,null,0]
[5,null,null,null,null,null,null,null,null,null,null,0]
[null,"Szkolenia ad hoc",{"$f":"SUMPRODUCT('Wykonanie szkoleń ad hoc'!G15:G19,'Wykonanie szkoleń ad hoc'!G26:G30)","v":220},{"$f":"SUMPRODUCT('Wykonanie szkoleń ad hoc'!H15:H19,'Wykonanie szkoleń ad hoc'!H26:H30)","v":0},{"$f":"SUMPRODUCT('Wykonanie szkoleń ad hoc'!I15:I19,'Wykonanie szkoleń ad hoc'!I26:I30)","v":0},{"$f":"SUMPRODUCT('Wykonanie szkoleń ad hoc'!J15:J19,'Wykonanie szkoleń ad hoc'!J26:J30)","v":500},{"$f":"SUMPRODUCT('Wykonanie szkoleń ad hoc'!K15:K19,'Wykonanie szkoleń ad hoc'!K26:K30)","v":0},{"$f":"SUMPRODUCT('Wykonanie szkoleń ad hoc'!L15:L19,'Wykonanie szkoleń ad hoc'!L26:L30)","v":0},{"$f":"SUMPRODUCT('Wykonanie szkoleń ad hoc'!M15:M19,'Wykonanie szkoleń ad hoc'!M26:M30)","v":0},{"$f":"SUMPRODUCT('Wykonanie szkoleń ad hoc'!N15:N19,'Wykonanie szkoleń ad hoc'!N26:N30)","v":0},{"$f":"SUMPRODUCT('Wykonanie szkoleń ad hoc'!O15:O19,'Wykonanie szkoleń ad hoc'!O26:O30)","v":0},720]
["Suma",null,{"$f":"SUM(C31:C36)","v":4220},{"$f":"SUM(D31:D36)","v":2000},10000,680,0,0,0,0,425,{"$f":"SUM(L31:L36)","v":17325}]
[]
["% wykonania planu"]
["Suma",null,{"$f":"IF(C37=0,0,C37/'Koszty szkoleń'!G29)","v":0.94831460674157309},{"$f":"IF(D37=0,0,D37/'Koszty szkoleń'!H29)","v":1},{"$f":"IF(E37=0,0,E37/'Koszty szkoleń'!I29)","v":1},{"$f":"IF(F37=0,0,F37/'Koszty szkoleń'!J29)","v":0.57823129251700678},{"$f":"IF(G37=0,0,G37/'Koszty szkoleń'!K29)","v":0},{"$f":"IF(H37=0,0,H37/'Koszty szkoleń'!L29)","v":0},{"$f":"IF(I37=0,0,I37/'Koszty szkoleń'!M29)","v":0},{"$f":"IF(J37=0,0,J37/'Koszty szkoleń'!N29)","v":0},{"$f":"IF(K37=0,0,K37/'Koszty szkoleń'!O29)","v":0.85},{"$f":"IF('Koszty szkoleń'!P9=0,0,'Wykonanie planu'!L37/'Koszty szkoleń'!P9)","v":0.89646072648245889}]
[]
[null,"% wykonania budżetu",{"$f":"L37/'Koszty szkoleń'!E11","v":0.34649999999999997}]
[null,"Środki pozostałe do wykorzystania ogółem",{"$f":"'Koszty szkoleń'!E11-'Wykonanie planu'!L37","v":32675}]